Workbook

Sheet Data summary
A1: RUN # 2 | B1: Rate classes | C1: Weather station used for normalization | H1: Test Year
A2: 1 | B2: Residential | C2: Windsor | H2: 2004
A3: 2 | B3: GS>50kW
A4: 3 | B4: Street Lighting
A5: 4 | B5: Sentinel Lighting
A6: 5 | B6: USL
A7: 6 | B7: GS < 50 kW
A10: Monthly kWh by class (with actual weather) | C10: Jan | D10: Feb | E10: Mar | F10: Apr | G10: May | H10: Jun | I10: Jul | J10: Aug | K10: Sep | L10: Oct | M10: Nov | N10: Dec | O10: TOTAL
A11: 1 | B11: Residential | C11: 31053454.36 | D11: 25345125.78 | E11: 23836707.88 | F11: 18973366.9 | G11: 16112686.42 | H11: 13989061.99 | I11: 14542439.94 | J11: 14816975.5 | K11: 14140924.97 | L11: 15981167.84 | M11: 20100427.56 | N11: 26823201.75 | O11: =SUM(C11:N11) -> 235715540.9
A12: 2 | B12: GS>50kW | C12: 13034596.26 | D12: 12068419.85 | E12: 12565021.04 | F12: 11096421.1 | G12: 10758175.09 | H12: 11014196.32 | I12: 11364895.3 | J12: 11567316.16 | K12: 12142131.85 | L12: 12662999.02 | M12: 12767181.26 | N12: 13872081.5 | O12: 144913434.8
A13: 3 | B13: Street Lighting | C13: 451924.2 | D13: 399948.72 | E13: 442460.52 | F13: 428241.6 | G13: 442516.32 | H13: 428241.6 | I13: 441330.47 | J13: 442516.32 | K13: 428259.6 | L13: 442516.32 | M13: 448257.6 | N13: 556942.08 | O13: 5353155.35
A14: 4 | B14: Sentinel Lighting | C14: 598.92 | D14: 534.24 | E14: 591.48 | F14: 579.6 | G14: 598.92 | H14: 579.6 | I14: 638.12 | J14: 639.84 | K14: 619.2 | L14: 639.84 | M14: 619.2 | N14: 660.48 | O14: 7299.44
A15: 5 | B15: USL | C15: 44912.03 | D15: 41077.96 | E15: 43109.03 | F15: 43278.2 | G15: 47292.03 | H15: 44414.2 | I15: 43590.03 | J15: 41233.03 | K15: 39624.2 | L15: 58292.03 | M15: 39032.2 | N15: 48246.03 | O15: 534100.97
A16: 6 | B16: GS < 50 kW | C16: 8114994.76 | D16: 7126092.71 | E16: 6722067.64 | F16: 6361678.27 | G16: 5193246.7 | H16: 5613903.16 | I16: 5953695.92 | J16: 5969889.5 | K16: 5618992.1 | L16: 5442173.25 | M16: 5953366.62 | N16: 7333311.34 | O16: 75403411.97
A19: Monthly kWh by class (with normalized weather) | C19: Jan | D19: Feb | E19: Mar | F19: Apr | G19: May | H19: Jun | I19: Jul | J19: Aug | K19: Sep | L19: Oct | M19: Nov | N19: Dec | O19: TOTAL
A20: 1 | B20: Residential | C20: 29734588.43 | D20: 25719070.31 | E20: 25156025.51 | F20: 19554428.12 | G20: 16359235.86 | H20: 14192988.72 | I20: 14715282.6 | J20: 15048879.43 | K20: 14277205.27 | L20: 16854868.86 | M20: 21316452.74 | N20: 26729132.68 | O20: =SUM(C20:N20) -> 239658158.5
A21: 2 | B21: GS>50kW | C21: 12804647.07 | D21: 12133618.47 | E21: 12795049 | F21: 11197731.29 | G21: 10826717.52 | H21: 11176057.52 | I21: 11502084.39 | J21: 11751383.5 | K21: 12209996.5 | L21: 12815332.05 | M21: 12979199.79 | N21: 13855680.21 | O21: 146047497.3
A22: 3 | B22: Street Lighting | C22: 451924.2 | D22: 399948.72 | E22: 442460.52 | F22: 428241.6 | G22: 442516.32 | H22: 428241.6 | I22: 441330.47 | J22: 442516.32 | K22: 428259.6 | L22: 442516.32 | M22: 448257.6 | N22: 556942.08 | O22: 5353155.35
A23: 4 | B23: Sentinel Lighting | C23: 598.92 | D23: 534.24 | E23: 591.48 | F23: 579.6 | G23: 598.92 | H23: 579.6 | I23: 638.12 | J23: 639.84 | K23: 619.2 | L23: 639.84 | M23: 619.2 | N23: 660.48 | O23: 7299.44
A24: 5 | B24: USL | C24: 44912.03 | D24: 41077.96 | E24: 43109.03 | F24: 43278.2 | G24: 47292.03 | H24: 44414.2 | I24: 43590.03 | J24: 41233.03 | K24: 39624.2 | L24: 58292.03 | M24: 39032.2 | N24: 48246.03 | O24: 534100.97
A25: 6 | B25: GS < 50 kW | C25: 7897692.27 | D25: 7187705.55 | E25: 6939444.546 | F25: 6457416.62 | G25: 5270877.46 | H25: 5830411.638 | I25: 6137202.521 | J25: 6216101.305 | K25: 5705314.582 | L25: 5586128.298 | M25: 6153724.584 | N25: 7317812.088 | O25: 76699831.46
A28: Residential class information | C28: Equipment saturation
B29: Electric space heating | C29: 0.24
B30: Electric water heating | C30: 0.5
B31: Air conditioning | C31: 0.5
B32: Baseload | C32: 1
A35: General service >50kW | C35: 2004 kWh (Actual) | D35: 2004 kWh (Weather Corrected)
B36: Weather sensitive load | C36: 68956502.04 | D36: 70090564.58
B37: Non-weather sensitive load | C37: 75956932.73 | D37: 75956932.73
B38: TOTAL | C38: =SUM(C36:C37) -> 144913434.8 | D38: =SUM(D36:D37) -> 146047497.3

Sheet Hourly load shapes by class
A1: ALL UNITS IN GWh | G1: 2004 Load Shape | O1: 2024 Load Shape
A2: Year | B2: Month | C2: Day | D2: Hour (EST) | G2: Residential | H2: GS>50kW | I2: Street Lighting | J2: Sentinel Lighting | K2: USL | L2: GS<50kW | M2: TOTAL LDC sales | O2: =G2 -> Residential | P2: GS>50kW | Q2: Street Lighting | R2: Sentinel Lighting | S2: USL | T2: GS<50kW | U2: TOTAL LDC sales | X2: Residential | Y2: GS>50kW | Z2: Street Lighting | AA2: Sentinel Lighting | AB2: USL | AC2: GS<50kW | AD2: Total
A3: 2004 | B3: 1 | C3: 1 | D3: 1 | G3: 0.02611501628 | H3: 0.01063449241 | I3: 0.00121485 | J3: 1.61e-06 | K3: 6.036563172e-05 | L3: 0.009653474858 | M3: 0.04767980918 | O3: =G3*X$5 -> 0.02113605149 | P3: =H3*Y$5 -> 0.01295976023 | Q3: =I3*Z$5 -> 0.0006864268391 | R3: =J3*AA$5 -> 2.139920323e-06 | S3: =K3*AB$5 -> 2.555514345e-05 | T3: =L3*AC$5 -> 0.008893051271 | U3: =SUM(O3:T3) -> 0.04370298489 | W3: 2004 | X3: =SUM(G3:G8786)*1000000 -> 239658158.5 | Y3: 146047497.3 | Z3: 5353155.35 | AA3: 7299.44 | AB3: 534100.97 | AC3: 76699831.46 | AD3: =SUM(X3:AC3) -> 468300043.1
A4: 2004 | B4: 1 | C4: 1 | D4: 2 | G4: 0.02470086791 | H4: 0.01044604409 | I4: 0.00121485 | J4: 1.61e-06 | K4: 6.036563172e-05 | L4: 0.009512275844 | M4: 0.04593601347 | O4: 0.01999151791 | P4: 0.01273010704 | Q4: =I4*Z$5 -> 0.0006864268391 | R4: 2.139920323e-06 | S4: 2.555514345e-05 | T4: 0.008762974786 | U4: 0.04219872165 | W4: 2024 Forecast | X4: 193966073.9 | Y4: 177981277.7 | Z4: 3024694 | AA4: 9702 | AB4: 226105.9234 | AC4: 70658031.81 | AD4: =SUM(X4:AC4) -> 445865885.3
A5: 2004 | B5: 1 | C5: 1 | D5: 3 | G5: 0.02328571394 | H5: 0.01045677346 | I5: 0.00121485 | J5: 1.61e-06 | K5: 6.036563172e-05 | L5: 0.01011843144 | M5: 0.04513774447 | O5: 0.01884617047 | P5: 0.01274318243 | Q5: 0.0006864268391 | R5: 2.139920323e-06 | S5: 2.555514345e-05 | T5: 0.009321382287 | U5: 0.04162485709 | W5: Scaling Factor | X5: =X4/X3 -> 0.8093447561 | Y5: =Y4/Y3 -> 1.21865339 | Z5: =Z4/Z3 -> 0.5650301182 | AA5: 1.329143058 | AB5: 0.4233392863 | AC5: 0.9212279931 | AD5: =AD4/AD3 -> 0.9520944786
A6: 2004 | B6: 1 | C6: 1 | D6: 4 | G6: 0.02343691246 | H6: 0.01023825228 | I6: 0.00121485 | J6: 1.61e-06 | K6: 6.036563172e-05 | L6: 0.009983437145 | M6: 0.04493542751 | O6: 0.0189685422 | P6: 0.01247688085 | Q6: 0.0006864268391 | R6: 2.139920323e-06 | S6: 2.555514345e-05 | T6: 0.009197021766 | U6: 0.04135656671
A7: 2004 | B7: 1 | C7: 1 | D7: 5 | G7: 0.02304659595 | H7: 0.01036835535 | I7: 0.00121485 | J7: 1.61e-06 | K7: 6.036563172e-05 | L7: 0.0107129789 | M7: 0.04540475582 | O7: 0.01865264158 | P7: 0.0126354314 | Q7: 0.0006864268391 | R7: 2.139920323e-06 | S7: 2.555514345e-05 | T7: 0.009869096049 | U7: 0.04187129092
A8: 2004 | B8: 1 | C8: 1 | D8: 6 | G8: 0.02438662262 | H8: 0.01058659936 | I8: 0.00121485 | J8: 1.61e-06 | K8: 6.036563172e-05 | L8: 0.01058608285 | M8: 0.04683613047 | O8: 0.01973718514 | P8: 0.0129013952 | Q8: 0.0006864268391 | R8: 2.139920323e-06 | S8: 2.555514345e-05 | T8: 0.009752195863 | U8: 0.04310489811
A9: 2004 | B9: 1 | C9: 1 | D9: 7 | G9: 0.02778744558 | H9: 0.0112795028 | I9: 0 | J9: 0 | K9: 6.036563172e-05 | L9: 0.010965179 | M9: 0.05009249302 | O9: 0.02248962337 | P9: 0.01374580433 | Q9: 0 | R9: 0 | S9: 2.555514345e-05 | T9: 0.01010142984 | U9: 0.04636241269
A10: 2004 | B10: 1 | C10: 1 | D10: 8 | G10: 0.03133878939 | H10: 0.01239421269 | I10: 0 | J10: 0 | K10: 6.036563172e-05 | L10: 0.01114790221 | M10: 0.05494126992 | O10: 0.02536388486 | P10: 0.01510424931 | Q10: 0 | R10: 0 | S10: 2.555514345e-05 | T10: 0.01026975958 | U10: 0.05076344889
A11: 2004 | B11: 1 | C11: 1 | D11: 9 | G11: 0.03549015629 | H11: 0.01275621437 | I11: 0 | J11: 0 | K11: 6.036563172e-05 | L11: 0.01041252241 | M11: 0.0587192587 | O11: 0.02872377189 | P11: 0.01554540388 | Q11: 0 | R11: 0 | S11: 2.555514345e-05 | T11: 0.009592307125 | U11: 0.05388703804
A12: 2004 | B12: 1 | C12: 1 | D12: 10 | G12: 0.03937554068 | H12: 0.01285518059 | I12: 0 | J12: 0 | K12: 6.036563172e-05 | L12: 0.01064522255 | M12: 0.06293630946 | O12: 0.03186838737 | P12: 0.01566600941 | Q12: 0 | R12: 0 | S12: 2.555514345e-05 | T12: 0.009806677006 | U12: 0.05736662893
A13: 2004 | B13: 1 | C13: 1 | D13: 11 | G13: 0.03853375578 | H13: 0.01326056596 | I13: 0 | J13: 0 | K13: 6.036563172e-05 | L13: 0.01263547919 | M13: 0.06449016655 | O13: 0.03118709317 | P13: 0.01616003366 | Q13: 0 | R13: 0 | S13: 2.555514345e-05 | T13: 0.01164015713 | U13: 0.0590128391
A14: 2004 | B14: 1 | C14: 1 | D14: 12 | G14: 0.03873212662 | H14: 0.01336893939 | I14: 0 | J14: 0 | K14: 6.036563172e-05 | L14: 0.01288339577 | M14: 0.0650448274 | O14: 0.03134764357 | P14: 0.01629210331 | Q14: 0 | R14: 0 | S14: 2.555514345e-05 | T14: 0.01186854483 | U14: 0.05953384685
A15: 2004 | B15: 1 | C15: 1 | D15: 13 | G15: 0.03826625774 | H15: 0.01318913631 | I15: 0 | J15: 0 | K15: 6.036563172e-05 | L15: 0.01092231606 | M15: 0.06243807574 | O15: 0.03097059504 | P15: 0.01607298568 | Q15: 0 | R15: 0 | S15: 2.555514345e-05 | T15: 0.0100619433 | U15: 0.05713107916
A16: 2004 | B16: 1 | C16: 1 | D16: 14 | G16: 0.03652750672 | H16: 0.01344789863 | I16: 0 | J16: 0 | K16: 6.036563172e-05 | L16: 0.01167285286 | M16: 0.06170862384 | O16: 0.02956334601 | P16: 0.01638832726 | Q16: 0 | R16: 0 | S16: 2.555514345e-05 | T16: 0.01075335881 | U16: 0.05673058723
A17: 2004 | B17: 1 | C17: 1 | D17: 15 | G17: 0.03566643962 | H17: 0.01350504097 | I17: 0 | J17: 0 | K17: 6.036563172e-05 | L17: 0.01205975048 | M17: 0.06129159671 | O17: 0.02886644588 | P17: 0.01645796396 | Q17: 0 | R17: 0 | S17: 2.555514345e-05 | T17: 0.01110977974 | U17: 0.05645974472
A18: 2004 | B18: 1 | C18: 1 | D18: 16 | G18: 0.03700840598 | H18: 0.01313675064 | I18: 0 | J18: 0 | K18: 6.036563172e-05 | L18: 0.010571329 | M18: 0.06077685125 | O18: 0.02995255931 | P18: 0.0160091457 | Q18: 0 | R18: 0 | S18: 2.555514345e-05 | T18: 0.009738604199 | U18: 0.05572586436
A19: 2004 | B19: 1 | C19: 1 | D19: 17 | G19: 0.04101232549 | H19: 0.0129702205 | I19: 0 | J19: 0 | K19: 6.036563172e-05 | L19: 0.01005913274 | M19: 0.06410204436 | O19: 0.03319311057 | P19: 0.01580620319 | Q19: 0 | R19: 0 | S19: 2.555514345e-05 | T19: 0.009266754668 | U19: 0.05829162357
A20: 2004 | B20: 1 | C20: 1 | D20: 18 | G20: 0.04544595075 | H20: 0.01297050364 | I20: 0 | J20: 0 | K20: 6.036563172e-05 | L20: 0.01014642612 | M20: 0.06862324614 | O20: 0.03678144193 | P20: 0.01580654824 | Q20: 0 | R20: 0 | S20: 2.555514345e-05 | T20: 0.00934717177 | U20: 0.06196071708
A21: 2004 | B21: 1 | C21: 1 | D21: 19 | G21: 0.04651750673 | H21: 0.01251882586 | I21: 0.00121485 | J21: 1.61e-06 | K21: 6.036563172e-05 | L21: 0.007400350181 | M21: 0.06771350841 | O21: 0.03764870014 | P21: 0.01525610958 | Q21: 0.0006864268391 | R21: 2.139920323e-06 | S21: 2.555514345e-05 | T21: 0.006817409746 | U21: 0.06043634137
A22: 2004 | B22: 1 | C22: 1 | D22: 20 | G22: 0.04331450534 | H22: 0.01242856174 | I22: 0.00121485 | J22: 1.61e-06 | K22: 6.036563172e-05 | L22: 0.008907150237 | M22: 0.06592704294 | O22: 0.03505636776 | P22: 0.01514610889 | Q22: 0.0006864268391 | R22: 2.139920323e-06 | S22: 2.555514345e-05 | T22: 0.008205516138 | U22: 0.05912211469
A23: 2004 | B23: 1 | C23: 1 | D23: 21 | G23: 0.04054270148 | H23: 0.01219956038 | I23: 0.00121485 | J23: 1.61e-06 | K23: 6.036563172e-05 | L23: 0.009464991356 | M23: 0.06348407885 | O23: 0.03281302284 | P23: 0.01486703562 | Q23: 0.0006864268391 | R23: 2.139920323e-06 | S23: 2.555514345e-05 | T23: 0.008719414992 | U23: 0.05711359535
A24: 2004 | B24: 1 | C24: 1 | D24: 22 | G24: 0.03898425453 | H24: 0.01149421006 | I24: 0.00121485 | J24: 1.61e-06 | K24: 6.036563172e-05 | L24: 0.008159998048 | M24: 0.05991528828 | O24: 0.03155170198 | P24: 0.01400745806 | Q24: 0.0006864268391 | R24: 2.139920323e-06 | S24: 2.555514345e-05 | T24: 0.007517218626 | U24: 0.05379050056
A25: 2004 | B25: 1 | C25: 1 | D25: 23 | G25: 0.03583864279 | H25: 0.01134187 | I25: 0.00121485 | J25: 1.61e-06 | K25: 6.036563172e-05 | L25: 0.008324066956 | M25: 0.05678140538 | O25: 0.02900581761 | P25: 0.01382180833 | Q25: 0.0006864268391 | R25: 2.139920323e-06 | S25: 2.555514345e-05 | T25: 0.007668363497 | U25: 0.05121011134
A26: 2004 | B26: 1 | C26: 1 | D26: 24 | G26: 0.02934173934 | H26: 0.01116721608 | I26: 0.00121485 | J26: 1.61e-06 | K26: 6.036563172e-05 | L26: 0.009619722701 | M26: 0.05140550375 | O26: 0.02374758287 | P26: 0.01360896574 | Q26: 0.0006864268391 | R26: 2.139920323e-06 | S26: 2.555514345e-05 | T26: 0.008861957839 | U26: 0.04693262835
A27: 2004 | B27: 1 | C27: 2 | D27: 1 | G27: 0.02549857271 | H27: 0.01136433815 | I27: 0.00121485 | J27: 1.61e-06 | K27: 6.036563172e-05 | L27: 0.008848359839 | M27: 0.04698809633 | O27: 0.02063713611 | P27: 0.01384918921 | Q27: 0.0006864268391 | R27: 2.139920323e-06 | S27: 2.555514345e-05 | T27: 0.008151356777 | U27: 0.043351804
A28: 2004 | B28: 1 | C28: 2 | D28: 2 | G28: 0.02344057887 | H28: 0.01100965941 | I28: 0.00121485 | J28: 1.61e-06 | K28: 6.036563172e-05 | L28: 0.009542536087 | M28: 0.0452696 | O28: 0.01897150959 | P28: 0.01341695877 | Q28: 0.0006864268391 | R28: 2.139920323e-06 | S28: 2.555514345e-05 | T28: 0.008790851369 | U28: 0.04189344162
A29: 2004 | B29: 1 | C29: 2 | D29: 3 | G29: 0.02205572561 | H29: 0.01099368252 | I29: 0.00121485 | J29: 1.61e-06 | K29: 6.036563172e-05 | L29: 0.01015667873 | M29: 0.04448291249 | O29: 0.01785068586 | P29: 0.01339748847 | Q29: 0.0006864268391 | R29: 2.139920323e-06 | S29: 2.555514345e-05 | T29: 0.009356616765 | U29: 0.041318913
A30: 2004 | B30: 1 | C30: 2 | D30: 4 | G30: 0.02247682843 | H30: 0.01064115481 | I30: 0.00121485 | J30: 1.61e-06 | K30: 6.036563172e-05 | L30: 0.009888718041 | M30: 0.04428352691 | O30: 0.01819150323 | P30: 0.01296787938 | Q30: 0.0006864268391 | R30: 2.139920323e-06 | S30: 2.555514345e-05 | T30: 0.009109763875 | U30: 0.04098326838
A31: 2004 | B31: 1 | C31: 2 | D31: 5 | G31: 0.02182309972 | H31: 0.01098099727 | I31: 0.00121485 | J31: 1.61e-06 | K31: 6.036563172e-05 | L31: 0.01066512291 | M31: 0.04474604553 | O31: 0.01766241132 | P31: 0.01338202954 | Q31: 0.0006864268391 | R31: 2.139920323e-06 | S31: 2.555514345e-05 | T31: 0.009825009776 | U31: 0.04158357254
A32: 2004 | B32: 1 | C32: 2 | D32: 6 | G32: 0.02313366896 | H32: 0.01156115852 | I32: 0.00121485 | J32: 1.61e-06 | K32: 6.036563172e-05 | L32: 0.01018500485 | M32: 0.04615665796 | O32: 0.01872311366 | P32: 0.01408904503 | Q32: 0.0006864268391 | R32: 2.139920323e-06 | S32: 2.555514345e-05 | T32: 0.009382711575 | U32: 0.04290899217
A33: 2004 | B33: 1 | C33: 2 | D33: 7 | G33: 0.02717926248 | H33: 0.01255924421 | I33: 0 | J33: 0 | K33: 6.036563172e-05 | L33: 0.009566905021 | M33: 0.04936577735 | O33: 0.02199739357 | P33: 0.01530536553 | Q33: 0 | R33: 0 | S33: 2.555514345e-05 | T33: 0.008813300713 | U33: 0.04614161496
A34: 2004 | B34: 1 | C34: 2 | D34: 8 | G34: 0.02993311402 | H34: 0.01442949702 | I34: 0 | J34: 0 | K34: 6.036563172e-05 | L34: 0.009721233239 | M34: 0.0541442099 | O34: 0.02422620887 | P34: 0.01758455546 | Q34: 0 | R34: 0 | S34: 2.555514345e-05 | T34: 0.008955472187 | U34: 0.05079179165
A35: 2004 | B35: 1 | C35: 2 | D35: 9 | G35: 0.03317000848 | H35: 0.01631593872 | I35: 0 | J35: 0 | K35: 6.036563172e-05 | L35: 0.00832107843 | M35: 0.05786739126 | O35: 0.02684597242 | P35: 0.01988347404 | Q35: 0 | R35: 0 | S35: 2.555514345e-05 | T35: 0.007665610382 | U35: 0.05442061199
A36: 2004 | B36: 1 | C36: 2 | D36: 10 | G36: 0.03574160824 | H36: 0.01723515502 | I36: 0 | J36: 0 | K36: 6.036563172e-05 | L36: 0.008986131841 | M36: 0.06202326074 | O36: 0.02892728321 | P36: 0.0210036801 | Q36: 0 | R36: 0 | S36: 2.555514345e-05 | T36: 0.008278276202 | U36: 0.05823479465
A37: 2004 | B37: 1 | C37: 2 | D37: 11 | G37: 0.03540413638 | H37: 0.01784123122 | I37: 0 | J37: 0 | K37: 6.036563172e-05 | L37: 0.01024883911 | M37: 0.06355457234 | O37: 0.02865415212 | P37: 0.02174227691 | Q37: 0 | R37: 0 | S37: 2.555514345e-05 | T37: 0.009441517488 | U37: 0.05986350166
A38: 2004 | B38: 1 | C38: 2 | D38: 12 | G38: 0.03611376844 | H38: 0.01790271805 | I38: 0 | J38: 0 | K38: 6.036563172e-05 | L38: 0.01002433454 | M38: 0.06410118665 | O38: 0.02922848911 | P38: 0.02181720804 | Q38: 0 | R38: 0 | S38: 2.555514345e-05 | T38: 0.009234697586 | U38: 0.06030594988
A39: 2004 | B39: 1 | C39: 2 | D39: 13 | G39: 0.03506694928 | H39: 0.01736453619 | I39: 0 | J39: 0 | K39: 6.036563172e-05 | L39: 0.009040407506 | M39: 0.0615322586 | O39: 0.02838125151 | P39: 0.02116135089 | Q39: 0 | R39: 0 | S39: 2.555514345e-05 | T39: 0.008328276464 | U39: 0.05789643401
A40: 2004 | B40: 1 | C40: 2 | D40: 14 | G40: 0.03454444916 | H40: 0.01742552019 | I40: 0 | J40: 0 | K40: 6.036563172e-05 | L40: 0.008783056561 | M40: 0.06081339155 | O40: 0.02795836878 | P40: 0.02123566926 | Q40: 0 | R40: 0 | S40: 2.555514345e-05 | T40: 0.008091197569 | U40: 0.05731079075
A41: 2004 | B41: 1 | C41: 2 | D41: 15 | G41: 0.03279978287 | H41: 0.01776380494 | I41: 0 | J41: 0 | K41: 6.036563172e-05 | L41: 0.009778458661 | M41: 0.0604024121 | O41: 0.02654633227 | P41: 0.02164792111 | Q41: 0 | R41: 0 | S41: 2.555514345e-05 | T41: 0.009008189848 | U41: 0.05722799837
A42: 2004 | B42: 1 | C42: 2 | D42: 16 | G42: 0.03343485412 | H42: 0.0174581605 | I42: 0 | J42: 0 | K42: 6.036563172e-05 | L42: 0.008941758663 | M42: 0.05989513891 | O42: 0.02706032385 | P42: 0.02127544647 | Q42: 0 | R42: 0 | S42: 2.555514345e-05 | T42: 0.008237398388 | U42: 0.05659872386
A43: 2004 | B43: 1 | C43: 2 | D43: 17 | G43: 0.03803256471 | H43: 0.01730378916 | I43: 0 | J43: 0 | K43: 6.036563172e-05 | L43: 0.007775360172 | M43: 0.06317207968 | O43: 0.03078145681 | P43: 0.02108732132 | Q43: 0 | R43: 0 | S43: 2.555514345e-05 | T43: 0.007162879447 | U43: 0.05905721272
A44: 2004 | B44: 1 | C44: 2 | D44: 18 | G44: 0.04180364496 | H44: 0.01728559969 | I44: 0 | J44: 0 | K44: 6.036563172e-05 | L44: 0.008478090722 | M44: 0.06762770101 | O44: 0.03383356084 | P44: 0.02106515466 | Q44: 0 | R44: 0 | S44: 2.555514345e-05 | T44: 0.007810254501 | U44: 0.06273452515
A45: 2004 | B45: 1 | C45: 2 | D45: 19 | G45: 0.04351063108 | H45: 0.01647203021 | I45: 0.00121485 | J45: 1.61e-06 | K45: 6.036563172e-05 | L45: 0.00547166316 | M45: 0.06673115008 | O45: 0.0352151011 | P45: 0.02007369546 | Q45: 0.0006864268391 | R45: 2.139920323e-06 | S45: 2.555514345e-05 | T45: 0.005040649272 | U45: 0.06104356773
A46: 2004 | B46: 1 | C46: 2 | D46: 20 | G46: 0.04158294672 | H46: 0.01632347369 | I46: 0.00121485 | J46: 1.61e-06 | K46: 6.036563172e-05 | L46: 0.005787358702 | M46: 0.06497060475 | O46: 0.03365493987 | P46: 0.01989265655 | Q46: 0.0006864268391 | R46: 2.139920323e-06 | S46: 2.555514345e-05 | T46: 0.005331476842 | U46: 0.05959319517
A47: 2004 | B47: 1 | C47: 2 | D47: 21 | G47: 0.03770961282 | H47: 0.0161334537 | I47: 0.00121485 | J47: 1.61e-06 | K47: 6.036563172e-05 | L47: 0.007443190391 | M47: 0.06256308254 | O47: 0.0305200774 | P47: 0.01966108804 | Q47: 0.0006864268391 | R47: 2.139920323e-06 | S47: 2.555514345e-05 | T47: 0.006856875347 | U47: 0.05775216269
A48: 2004 | B48: 1 | C48: 2 | D48: 22 | G48: 0.03685232653 | H48: 0.01497245679 | I48: 0.00121485 | J48: 1.61e-06 | K48: 6.036563172e-05 | L48: 0.005944455915 | M48: 0.05904606486 | O48: 0.02982623723 | P48: 0.01824623522 | Q48: 0.0006864268391 | R48: 2.139920323e-06 | S48: 2.555514345e-05 | T48: 0.005476199193 | U48: 0.05426279354
A49: 2004 | B49: 1 | C49: 2 | D49: 23 | G49: 0.03469423566 | H49: 0.01288619803 | I49: 0.00121485 | J49: 1.61e-06 | K49: 6.036563172e-05 | L49: 0.007100389511 | M49: 0.05595764883 | O49: 0.0280795977 | P49: 0.01570380891 | Q49: 0.0006864268391 | R49: 2.139920323e-06 | S49: 2.555514345e-05 | T49: 0.006541077579 | U49: 0.05103860609
A50: 2004 | B50: 1 | C50: 2 | D50: 24 | G50: 0.03168146516 | H50: 0.01151105917 | I50: 0.00121485 | J50: 1.61e-06 | K50: 6.036563172e-05 | L50: 0.006190388086 | M50: 0.05065973805 | O50: 0.02564122769 | P50: 0.01402799128 | Q50: 0.0006864268391 | R50: 2.139920323e-06 | S50: 2.555514345e-05 | T50: 0.005702758793 | U50: 0.04608609967
A51: 2004 | B51: 1 | C51: 3 | D51: 1 | G51: 0.02442783224 | H51: 0.01101605431 | I51: 0.00121485 | J51: 1.61e-06 | K51: 6.036563172e-05 | L51: 0.008736975792 | M51: 0.04545768797 | O51: 0.01977053793 | P51: 0.01342475193 | Q51: 0.0006864268391 | R51: 2.139920323e-06 | S51: 2.555514345e-05 | T51: 0.008048746675 | U51: 0.04195815844
A52: 2004 | B52: 1 | C52: 3 | D52: 2 | G52: 0.02300704612 | H52: 0.01060956592 | I52: 0.00121485 | J52: 1.61e-06 | K52: 6.036563172e-05 | L52: 0.009117611925 | M52: 0.0440110496 | O52: 0.01862063213 | P52: 0.01292938347 | Q52: 0.0006864268391 | R52: 2.139920323e-06 | S52: 2.555514345e-05 | T52: 0.008399399336 | U52: 0.04066353685
A53: 2004 | B53: 1 | C53: 3 | D53: 3 | G53: 0.02209938342 | H53: 0.01039475085 | I53: 0.00121485 | J53: 1.61e-06 | K53: 6.036563172e-05 | L53: 0.009659433906 | M53: 0.04343039381 | O53: 0.01788602008 | P53: 0.01266759837 | Q53: 0.0006864268391 | R53: 2.139920323e-06 | S53: 2.555514345e-05 | T53: 0.008898540912 | U53: 0.04016628126
A54: 2004 | B54: 1 | C54: 3 | D54: 4 | G54: 0.02162492296 | H54: 0.01021874644 | I54: 0.00121485 | J54: 1.61e-06 | K54: 6.036563172e-05 | L54: 0.01001708067 | M54: 0.0431375757 | O54: 0.017502018 | P54: 0.01245310999 | Q54: 0.0006864268391 | R54: 2.139920323e-06 | S54: 2.555514345e-05 | T54: 0.009228015121 | U54: 0.03989726502
A55: 2004 | B55: 1 | C55: 3 | D55: 5 | G55: 0.02184543848 | H55: 0.0103573858 | I55: 0.00121485 | J55: 1.61e-06 | K55: 6.036563172e-05 | L55: 0.01018998123 | M55: 0.04366963113 | O55: 0.01768049108 | P55: 0.01262206332 | Q55: 0.0006864268391 | R55: 2.139920323e-06 | S55: 2.555514345e-05 | T55: 0.009387295954 | U55: 0.04040397225
A56: 2004 | B56: 1 | C56: 3 | D56: 6 | G56: 0.02277941518 | H56: 0.01050288228 | I56: 0.00121485 | J56: 1.61e-06 | K56: 6.036563172e-05 | L56: 0.01003008256 | M56: 0.04458920565 | O56: 0.01843640023 | P56: 0.01279937309 | Q56: 0.0006864268391 | R56: 2.139920323e-06 | S56: 2.555514345e-05 | T56: 0.009239992827 | U56: 0.04118988805
A57: 2004 | B57: 1 | C57: 3 | D57: 7 | G57: 0.02494880891 | H57: 0.01113954659 | I57: 0 | J57: 0 | K57: 6.036563172e-05 | L57: 0.01033320087 | M57: 0.046481922 | O57: 0.02019218766 | P57: 0.01357524621 | Q57: 0 | R57: 0 | S57: 2.555514345e-05 | T57: 0.009519233902 | U57: 0.04331222292
A58: 2004 | B58: 1 | C58: 3 | D58: 8 | G58: 0.02961298062 | H58: 0.01210302805 | I58: 0 | J58: 0 | K58: 6.036563172e-05 | L58: 0.009329569025 | M58: 0.05110594333 | O58: 0.02396711058 | P58: 0.01474939616 | Q58: 0 | R58: 0 | S58: 2.555514345e-05 | T58: 0.00859466015 | U58: 0.04733672203
A59: 2004 | B59: 1 | C59: 3 | D59: 9 | G59: 0.03214577217 | H59: 0.01299054495 | I59: 0 | J59: 0 | K59: 6.036563172e-05 | L59: 0.009654830833 | M59: 0.05485151359 | O59: 0.02601701214 | P59: 0.01583097164 | Q59: 0 | R59: 0 | S59: 2.555514345e-05 | T59: 0.008894300432 | U59: 0.05076783936
A60: 2004 | B60: 1 | C60: 3 | D60: 10 | G60: 0.03413846893 | H60: 0.01343003172 | I60: 0 | J60: 0 | K60: 6.036563172e-05 | L60: 0.01017698546 | M60: 0.05780585175 | O60: 0.02762979081 | P60: 0.01636655368 | Q60: 0 | R60: 0 | S60: 2.555514345e-05 | T60: 0.009375323895 | U60: 0.05339722353
A61: 2004 | B61: 1 | C61: 3 | D61: 11 | G61: 0.03476217329 | H61: 0.01349096061 | I61: 0 | J61: 0 | K61: 6.036563172e-05 | L61: 0.01011412123 | M61: 0.05842762077 | O61: 0.02813458266 | P61: 0.01644080489 | Q61: 0 | R61: 0 | S61: 2.555514345e-05 | T61: 0.009317411607 | U61: 0.0539183543
A62: 2004 | B62: 1 | C62: 3 | D62: 12 | G62: 0.03504112321 | H62: 0.01322886442 | I62: 0 | J62: 0 | K62: 6.036563172e-05 | L62: 0.008997017333 | M62: 0.05732737059 | O62: 0.02836034932 | P62: 0.01612140047 | Q62: 0 | R62: 0 | S62: 2.555514345e-05 | T62: 0.008288304222 | U62: 0.05279560916
A63: 2004 | B63: 1 | C63: 3 | D63: 13 | G63: 0.03553552448 | H63: 0.012836169 | I63: 0 | J63: 0 | K63: 6.036563172e-05 | L63: 0.007973247914 | M63: 0.05640530702 | O63: 0.0287604904 | P63: 0.01564284086 | Q63: 0 | R63: 0 | S63: 2.555514345e-05 | T63: 0.007345179175 | U63: 0.05177406558
A64: 2004 | B64: 1 | C64: 3 | D64: 14 | G64: 0.03356051304 | H64: 0.01266459462 | I64: 0 | J64: 0 | K64: 6.036563172e-05 | L64: 0.007990372368 | M64: 0.05427584565 | O64: 0.02716202524 | P64: 0.01543375116 | Q64: 0 | R64: 0 | S64: 2.555514345e-05 | T64: 0.007360954701 | U64: 0.04998228625
A65: 2004 | B65: 1 | C65: 3 | D65: 15 | G65: 0.03259524572 | H65: 0.01278784631 | I65: 0 | J65: 0 | K65: 6.036563172e-05 | L65: 0.008424939309 | M65: 0.05386839698 | O65: 0.0263807912 | P65: 0.01558395226 | Q65: 0 | R65: 0 | S65: 2.555514345e-05 | T65: 0.007761289932 | U65: 0.04975158854
A66: 2004 | B66: 1 | C66: 3 | D66: 16 | G66: 0.03229589068 | H66: 0.01271637823 | I66: 0 | J66: 0 | K66: 6.036563172e-05 | L66: 0.008299840281 | M66: 0.05337247482 | O66: 0.02613850976 | P66: 0.01549685744 | Q66: 0 | R66: 0 | S66: 2.555514345e-05 | T66: 0.007646045205 | U66: 0.04930696755
A67: 2004 | B67: 1 | C67: 3 | D67: 17 | G67: 0.03601309934 | H67: 0.0125414047 | I67: 0 | J67: 0 | K67: 6.036563172e-05 | L67: 0.006763711486 | M67: 0.05537858116 | O67: =G67*X$5 -> 0.0291470131 | P67: =H67*Y$5 -> 0.01528362536 | Q67: =I67*Z$5 -> 0 | R67: =J67*AA$5 -> 0 | S67: =K67*AB$5 -> 2.555514345e-05 | T67: =L67*AC$5 -> 0.006230920358 | U67: =SUM(O67:T67) -> 0.05068711396
A68: 2004 | B68: 1 | C68: 3 | D68: 18 | G68: 0.04085395216 | H68: 0.01260736674 | I68: 0 | J68: 0 | K68: 6.036563172e-05 | L68: 0.006588076275 | M68: 0.0601097608 | O68: 0.03306493195 | P68: 0.01536401021 | Q68: 0 | R68: 0 | S68: 2.555514345e-05 | T68: 0.006069120285 | U68: 0.05452361759
A69: 2004 | B69: 1 | C69: 3 | D69: 19 | G69: 0.04171736261 | H69: 0.01214818764 | I69: 0.00121485 | J69: 1.61e-06 | K69: 6.036563172e-05 | L69: 0.004086442014 | M69: 0.0592288179 | O69: 0.03376372867 | P69: 0.01480443005 | Q69: 0.0006864268391 | R69: 2.139920323e-06 | S69: 2.555514345e-05 | T69: 0.003764544776 | U69: 0.0530468254
A70: 2004 | B70: 1 | C70: 3 | D70: 20 | G70: 0.03978957158 | H70: 0.01169290839 | I70: 0.00121485 | J70: 1.61e-06 | K70: 6.036563172e-05 | L70: 0.004165603698 | M70: 0.05692490931 | O70: 0.03220348111 | P70: 0.01424960245 | Q70: 0.0006864268391 | R70: 2.139920323e-06 | S70: 2.555514345e-05 | T70: 0.003837470735 | U70: 0.0510046762
A71: 2004 | B71: 1 | C71: 3 | D71: 21 | G71: 0.03703288034 | H71: 0.01166134244 | I71: 0.00121485 | J71: 1.61e-06 | K71: 6.036563172e-05 | L71: 0.006026809936 | M71: 0.05599785834 | O71: 0.0299723675 | P71: 0.0142111345 | Q71: 0.0006864268391 | R71: 2.139920323e-06 | S71: 2.555514345e-05 | T71: 0.005552066022 | U71: 0.05044968993
A72: 2004 | B72: 1 | C72: 3 | D72: 22 | G72: 0.03372378054 | H72: 0.0112217038 | I72: 0.00121485 | J72: 1.61e-06 | K72: 6.036563172e-05 | L72: 0.006304110926 | M72: 0.05252642089 | O72: 0.02729416494 | P72: 0.01367536737 | Q72: 0.0006864268391 | R72: 2.139920323e-06 | S72: 2.555514345e-05 | T72: 0.005807523457 | U72: 0.04749117767
A73: 2004 | B73: 1 | C73: 3 | D73: 23 | G73: 0.03185394518 | H73: 0.01096162569 | I73: 0.00121485 | J73: 1.61e-06 | K73: 6.036563172e-05 | L73: 0.005677799171 | M73: 0.04977019568 | O73: 0.02578082349 | P73: 0.01335842231 | Q73: 0.0006864268391 | R73: 2.139920323e-06 | S73: 2.555514345e-05 | T73: 0.005230547536 | U73: 0.04508391524
A74: 2004 | B74: 1 | C74: 3 | D74: 24 | G74: 0.02821337266 | H74: 0.01076761381 | I74: 0.00121485 | J74: 1.61e-06 | K74: 6.036563172e-05 | L74: 0.007614679364 | M74: 0.04787249147 | O74: 0.02283434522 | P74: 0.01312198908 | Q74: 0.0006864268391 | R74: 2.139920323e-06 | S74: 2.555514345e-05 | T74: 0.007014855788 | U74: 0.04368531199
A75: 2004 | B75: 1 | C75: 4 | D75: 1 | G75: 0.02600596528 | H75: 0.01120667326 | I75: 0.00121485 | J75: 1.61e-06 | K75: 6.036563172e-05 | L75: 0.008567402789 | M75: 0.04705686696 | O75: 0.02104779163 | P75: 0.01365705036 | Q75: 0.0006864268391 | R75: 2.139920323e-06 | S75: 2.555514345e-05 | T75: 0.007892531277 | U75: 0.04331149517
A76: 2004 | B76: 1 | C76: 4 | D76: 2 | G76: 0.02410819843 | H76: 0.01094735683 | I76: 0.00121485 | J76: 1.61e-06 | K76: 6.036563172e-05 | L76: 0.009152089109 | M76: 0.04548447 | O76: 0.01951184398 | P76: 0.01334103352 | Q76: 0.0006864268391 | R76: 2.139920323e-06 | S76: 2.555514345e-05 | T76: 0.008431160683 | U76: 0.04199816008
A77: 2004 | B77: 1 | C77: 4 | D77: 3 | G77: 0.02325114355 | H77: 0.01074505935 | I77: 0.00121485 | J77: 1.61e-06 | K77: 6.036563172e-05 | L77: 0.009546148223 | M77: 0.04481917676 | O77: 0.01881819111 | P77: 0.01309450301 | Q77: 0.0006864268391 | R77: 2.139920323e-06 | S77: 2.555514345e-05 | T77: 0.00879417897 | U77: 0.04142099499
A78: 2004 | B78: 1 | C78: 4 | D78: 4 | G78: 0.02323087274 | H78: 0.01053567527 | I78: 0.00121485 | J78: 1.61e-06 | K78: 6.036563172e-05 | L78: 0.009523538356 | M78: 0.044566912 | O78: 0.01880178503 | P78: 0.01283933639 | Q78: 0.0006864268391 | R78: 2.139920323e-06 | S78: 2.555514345e-05 | T78: 0.008773350127 | U78: 0.04112859345
A79: 2004 | B79: 1 | C79: 4 | D79: 5 | G79: 0.0228412476 | H79: 0.01072398499 | I79: 0.00121485 | J79: 1.61e-06 | K79: 6.036563172e-05 | L79: 0.01022807118 | M79: 0.04507012939 | O79: 0.01848644396 | P79: 0.01306882066 | Q79: 0.0006864268391 | R79: 2.139920323e-06 | S79: 2.555514345e-05 | T79: 0.009422385486 | U79: 0.04169177201
A80: 2004 | B80: 1 | C80: 4 | D80: 6 | G80: 0.02424829662 | H80: 0.01071967304 | I80: 0.00121485 | J80: 1.61e-06 | K80: 6.036563172e-05 | L80: 0.009663167704 | M80: 0.04590796299 | O80: 0.01962523171 | P80: 0.01306356589 | Q80: 0.0006864268391 | R80: 2.139920323e-06 | S80: 2.555514345e-05 | T80: 0.008901980592 | U80: 0.0423049001
A81: 2004 | B81: 1 | C81: 4 | D81: 7 | G81: 0.02734089232 | H81: 0.01132386649 | I81: 0 | J81: 0 | K81: 6.036563172e-05 | L81: 0.009416608158 | M81: 0.0481417326 | O81: 0.02212820783 | P81: 0.01379986829 | Q81: 0 | R81: 0 | S81: 2.555514345e-05 | T81: 0.008674843035 | U81: 0.0446284743
A82: 2004 | B82: 1 | C82: 4 | D82: 8 | G82: 0.03023534734 | H82: 0.01227148117 | I82: 0 | J82: 0 | K82: 6.036563172e-05 | L82: 0.00926829309 | M82: 0.05183548723 | O82: 0.02447081982 | P82: 0.01495468212 | Q82: 0 | R82: 0 | S82: 2.555514345e-05 | T82: 0.008538211043 | U82: 0.04798926813
A83: 2004 | B83: 1 | C83: 4 | D83: 9 | G83: 0.03485294512 | H83: 0.01245249845 | I83: 0 | J83: 0 | K83: 6.036563172e-05 | L83: 0.007673289162 | M83: 0.05503909837 | O83: 0.02820804837 | P83: 0.01517527945 | Q83: 0 | R83: 0 | S83: 2.555514345e-05 | T83: 0.007068848776 | U83: 0.05047773174
A84: 2004 | B84: 1 | C84: 4 | D84: 10 | G84: 0.03726651222 | H84: 0.01359189349 | I84: 0 | J84: 0 | K84: 6.036563172e-05 | L84: 0.006947506656 | M84: 0.057866278 | O84: 0.03016145625 | P84: 0.01656380707 | Q84: 0 | R84: 0 | S84: 2.555514345e-05 | T84: 0.006400237614 | U84: 0.05315105608
A85: 2004 | B85: 1 | C85: 4 | D85: 11 | G85: 0.03638347501 | H85: 0.01481906475 | I85: 0 | J85: 0 | K85: 6.036563172e-05 | L85: 0.00919004227 | M85: 0.06045294767 | O85: 0.02944677471 | P85: 0.0180593035 | Q85: 0 | R85: 0 | S85: 2.555514345e-05 | T85: 0.008466124197 | U85: 0.05599775755
A86: 2004 | B86: 1 | C86: 4 | D86: 12 | G86: 0.03617600107 | H86: 0.01480453034 | I86: 0 | J86: 0 | K86: 6.036563172e-05 | L86: 0.008667029738 | M86: 0.05970792677 | O86: 0.02927885676 | P86: 0.01804159108 | Q86: 0 | R86: 0 | S86: 2.555514345e-05 | T86: 0.007984310412 | U86: 0.0553303134
A87: 2004 | B87: 1 | C87: 4 | D87: 13 | G87: 0.03529558915 | H87: 0.01470371709 | I87: 0 | J87: 0 | K87: 6.036563172e-05 | L87: 0.008200031656 | M87: 0.05825970353 | O87: 0.0285663 | P87: 0.01791873467 | Q87: 0 | R87: 0 | S87: 2.555514345e-05 | T87: 0.007554098706 | U87: 0.05406468852
A88: 2004 | B88: 1 | C88: 4 | D88: 14 | G88: 0.03405069815 | H88: 0.01486961534 | I88: 0 | J88: 0 | K88: 6.036563172e-05 | L88: 0.008450347373 | M88: 0.05743102649 | O88: 0.02755875399 | P88: 0.01812090714 | Q88: 0 | R88: 0 | S88: 2.555514345e-05 | T88: 0.007784696552 | U88: 0.05348991282
A89: 2004 | B89: 1 | C89: 4 | D89: 15 | G89: 0.03401205076 | H89: 0.01474751865 | I89: 0 | J89: 0 | K89: 6.036563172e-05 | L89: 0.007161556535 | M89: 0.05598149158 | O89: 0.02752747493 | P89: 0.0179721136 | Q89: 0 | R89: 0 | S89: 2.555514345e-05 | T89: 0.006597426354 | U89: 0.05212257002
A90: 2004 | B90: 1 | C90: 4 | D90: 16 | G90: 0.03577250971 | H90: 0.0146403806 | I90: 0 | J90: 0 | K90: 6.036563172e-05 | L90: 0.006451933542 | M90: 0.05692518948 | O90: 0.02895229315 | P90: 0.01784154945 | Q90: 0 | R90: 0 | S90: 2.555514345e-05 | T90: 0.005943701788 | U90: 0.05276309953
A91: 2004 | B91: 1 | C91: 4 | D91: 17 | G91: 0.03848701791 | H91: 0.01448461654 | I91: 0 | J91: 0 | K91: 6.036563172e-05 | L91: 0.005691703789 | M91: 0.05872370386 | O91: 0.03114926612 | P91: 0.01765172704 | Q91: 0 | R91: 0 | S91: 2.555514345e-05 | T91: 0.005243356859 | U91: 0.05406990517
A92: 2004 | B92: 1 | C92: 4 | D92: 18 | G92: 0.0449054011 | H92: 0.01411815673 | I92: 0 | J92: 0 | K92: 6.036563172e-05 | L92: 0.004119088829 | M92: 0.06320301229 | O92: 0.0363439509 | P92: 0.01720513956 | Q92: 0 | R92: 0 | S92: 2.555514345e-05 | T92: 0.003794619936 | U92: 0.05736926554
A93: 2004 | B93: 1 | C93: 4 | D93: 19 | G93: 0.04541738509 | H93: 0.0138148036 | I93: 0.00121485 | J93: 1.61e-06 | K93: 6.036563172e-05 | L93: 0.0034233365 | M93: 0.06393235082 | O93: 0.03675832246 | P93: 0.01683545724 | Q93: 0.0006864268391 | R93: 2.139920323e-06 | S93: 2.555514345e-05 | T93: 0.003153673414 | U93: 0.05746157502
A94: 2004 | B94: 1 | C94: 4 | D94: 20 | G94: 0.04217673941 | H94: 0.01376117852 | I94: 0.00121485 | J94: 1.61e-06 | K94: 6.036563172e-05 | L94: 0.005122990984 | M94: 0.06233773455 | O94: 0.03413552288 | P94: 0.01677010686 | Q94: 0.0006864268391 | R94: 2.139920323e-06 | S94: 2.555514345e-05 | T94: 0.004719442703 | U94: 0.05633919434
A95: 2004 | B95: 1 | C95: 4 | D95: 21 | G95: 0.04072750417 | H95: 0.01366435842 | I95: 0.00121485 | J95: 1.61e-06 | K95: 6.036563172e-05 | L95: 0.005777628232 | M95: 0.06144631645 | O95: 0.03296259193 | P95: 0.01665211671 | Q95: 0.0006864268391 | R95: 2.139920323e-06 | S95: 2.555514345e-05 | T95: 0.005322512861 | U95: 0.0556513434
A96: 2004 | B96: 1 | C96: 4 | D96: 22 | G96: 0.03956157888 | H96: 0.01327545864 | I96: 0.00121485 | J96: 1.61e-06 | K96: 6.036563172e-05 | L96: 0.004996733003 | M96: 0.05911059616 | O96: 0.03201895641 | P96: 0.01617818268 | Q96: 0.0006864268391 | R96: 2.139920323e-06 | S96: 2.555514345e-05 | T96: 0.004603130317 | U96: 0.05351439131
A97: 2004 | B97: 1 | C97: 4 | D97: 23 | G97: 0.0352747528 | H97: 0.01358217727 | I97: 0.00121485 | J97: 1.61e-06 | K97: 6.036563172e-05 | L97: 0.003424442568 | M97: 0.05355819827 | O97: 0.0285494362 | P97: 0.01655196638 | Q97: 0.0006864268391 | R97: 2.139920323e-06 | S97: 2.555514345e-05 | T97: 0.003154692354 | U97: 0.04897021683
A98: 2004 | B98: 1 | C98: 4 | D98: 24 | G98: 0.02811204369 | H98: 0.01383496144 | I98: 0.00121485 | J98: 1.61e-06 | K98: 6.036563172e-05 | L98: 0.006981747456 | M98: 0.05020557821 | O98: 0.02275233515 | P98: 0.01686002265 | Q98: 0.0006864268391 | R98: 2.139920323e-06 | S98: 2.555514345e-05 | T98: 0.006431781197 | U98: 0.0467582609
A99: 2004 | B99: 1 | C99: 5 | D99: 1 | G99: 0.03116809127 | H99: 0.01472465089 | I99: 0.00121485 | J99: 1.61e-06 | K99: 6.036563172e-05 | L99: 0.01029962289 | M99: 0.05746919068 | O99: 0.02522573123 | P99: 0.01794424572 | Q99: 0.0006864268391 | R99: 2.139920323e-06 | S99: 2.555514345e-05 | T99: 0.009488300928 | U99: 0.05337239978
A100: 2004 | B100: 1 | C100: 5 | D100: 2 | G100: 0.02883425671 | H100: 0.01471370908 | I100: 0.00121485 | J100: 1.61e-06 | K100: 6.036563172e-05 | L100: 0.01127513841 | M100: 0.05609992983 | O100: 0.02333685447 | P100: 0.01793091146 | Q100: 0.0006864268391 | R100: 2.139920323e-06 | S100: 2.555514345e-05 | T100: 0.01038697313 | U100: 0.05236886095
A101: 2004 | B101: 1 | C101: 5 | D101: 3 | G101: 0.02868237404 | H101: 0.01475445282 | I101: 0.00121485 | J101: 1.61e-06 | K101: 6.036563172e-05 | L101: 0.01183753041 | M101: 0.05655118291 | O101: 0.02321392902 | P101: 0.01798056395 | Q101: 0.0006864268391 | R101: 2.139920323e-06 | S101: 2.555514345e-05 | T101: 0.01090506439 | U101: 0.05281367926
A102: 2004 | B102: 1 | C102: 5 | D102: 4 | G102: 0.02963947813 | H102: 0.01475041826 | I102: 0.00121485 | J102: 1.61e-06 | K102: 6.036563172e-05 | L102: 0.0111720853 | M102: 0.05683880732 | O102: 0.0239885562 | P102: 0.01797564722 | Q102: 0.0006864268391 | R102: 2.139920323e-06 | S102: 2.555514345e-05 | T102: 0.01029203772 | U102: 0.05297036304
A103: 2004 | B103: 1 | C103: 5 | D103: 5 | G103: 0.03021587199 | H103: 0.01497237089 | I103: 0.00121485 | J103: 1.61e-06 | K103: 6.036563172e-05 | L103: 0.01165344219 | M103: 0.0581185107 | O103: 0.02445505755 | P103: 0.01824613054 | Q103: 0.0006864268391 | R103: 2.139920323e-06 | S103: 2.555514345e-05 | T103: 0.01073547716 | U103: 0.05415078715
A104: 2004 | B104: 1 | C104: 5 | D104: 6 | G104: 0.03229317591 | H104: 0.01572508365 | I104: 0.00121485 | J104: 1.61e-06 | K104: 6.036563172e-05 | L104: 0.01129842433 | M104: 0.06059350952 | O104: 0.02613631258 | P104: 0.01916342649 | Q104: 0.0006864268391 | R104: 2.139920323e-06 | S104: 2.555514345e-05 | T104: 0.01040842477 | U104: 0.05642228575
A105: 2004 | B105: 1 | C105: 5 | D105: 7 | G105: 0.0394842758 | H105: 0.01686649935 | I105: 0 | J105: 0 | K105: 6.036563172e-05 | L105: 0.01030699255 | M105: 0.06671813333 | O105: 0.03195639157 | P105: 0.02055441661 | Q105: 0 | R105: 0 | S105: 2.555514345e-05 | T105: 0.009495090058 | U105: 0.06203145339
A106: 2004 | B106: 1 | C106: 5 | D106: 8 | G106: 0.04576678263 | H106: 0.01901212201 | I106: 0 | J106: 0 | K106: 6.036563172e-05 | L106: 0.01188046939 | M106: 0.07671973967 | O106: 0.03704110553 | P106: 0.02316918694 | Q106: 0 | R106: 0 | S106: 2.555514345e-05 | T106: 0.01094462097 | U106: 0.07118046859
A107: 2004 | B107: 1 | C107: 5 | D107: 9 | G107: 0.04795701316 | H107: 0.02037475354 | I107: 0 | J107: 0 | K107: 6.036563172e-05 | L107: 0.01270750292 | M107: 0.08109963524 | O107: 0.03881375712 | P107: 0.02482976247 | Q107: 0 | R107: 0 | S107: 2.555514345e-05 | T107: 0.01170650741 | U107: 0.07537558214
A108: 2004 | B108: 1 | C108: 5 | D108: 10 | G108: 0.04482842938 | H108: 0.02124267704 | I108: 0 | J108: 0 | K108: 6.036563172e-05 | L108: 0.01415867465 | M108: 0.0802901467 | O108: 0.03628165424 | P108: 0.02588746039 | Q108: 0 | R108: 0 | S108: 2.555514345e-05 | T108: 0.01304336743 | U108: 0.07523803721
A109: 2004 | B109: 1 | C109: 5 | D109: 11 | G109: 0.0431548308 | H109: 0.02190280123 | I109: 0 | J109: 0 | K109: 6.036563172e-05 | L109: 0.01388900039 | M109: 0.07900699806 | O109: 0.03492713601 | P109: 0.02669192297 | Q109: 0 | R109: 0 | S109: 2.555514345e-05 | T109: 0.01279493596 | U109: 0.07443955009
A110: 2004 | B110: 1 | C110: 5 | D110: 12 | G110: 0.04228318373 | H110: 0.02178691946 | I110: 0 | J110: 0 | K110: 6.036563172e-05 | L110: 0.01362267537 | M110: 0.07775314419 | O110: 0.03422167302 | P110: 0.02655070326 | Q110: 0 | R110: 0 | S110: 2.555514345e-05 | T110: 0.01254958989 | U110: 0.07334752132
A111: 2004 | B111: 1 | C111: 5 | D111: 13 | G111: 0.04210542413 | H111: 0.02136562022 | I111: 0 | J111: 0 | K111: 6.036563172e-05 | L111: 0.01223415333 | M111: 0.07576556331 | O111: 0.03407780422 | P111: 0.02603728551 | Q111: 0 | R111: 0 | S111: 2.555514345e-05 | T111: 0.01127044452 | U111: 0.0714110894
A112: 2004 | B112: 1 | C112: 5 | D112: 14 | G112: 0.04042996008 | H112: 0.02150719788 | I112: 0 | J112: 0 | K112: 6.036563172e-05 | L112: 0.01309632661 | M112: 0.07509385021 | O112: 0.03272177618 | P112: 0.0262098196 | Q112: 0 | R112: 0 | S112: 2.555514345e-05 | T112: 0.01206470268 | U112: 0.07102185361
A113: 2004 | B113: 1 | C113: 5 | D113: 15 | G113: 0.03965786696 | H113: 0.02097670353 | I113: 0 | J113: 0 | K113: 6.036563172e-05 | L113: 0.01212027003 | M113: 0.07281520614 | O113: 0.03209688666 | P113: 0.02556333086 | Q113: 0 | R113: 0 | S113: 2.555514345e-05 | T113: 0.01116553204 | U113: 0.0688513047
A114: 2004 | B114: 1 | C114: 5 | D114: 16 | G114: 0.04221926356 | H114: 0.02034662026 | I114: 0 | J114: 0 | K114: 6.036563172e-05 | L114: 0.01134636116 | M114: 0.07397261061 | O114: 0.03416993957 | P114: 0.02479547776 | Q114: 0 | R114: 0 | S114: 2.555514345e-05 | T114: 0.01045258552 | U114: 0.06944355799
A115: 2004 | B115: 1 | C115: 5 | D115: 17 | G115: 0.04686264683 | H115: 0.02034818767 | I115: 0 | J115: 0 | K115: 6.036563172e-05 | L115: 0.01126732733 | M115: 0.07853852747 | O115: 0.03792803747 | P115: 0.02479738789 | Q115: 0 | R115: 0 | S115: 2.555514345e-05 | T115: 0.01037977734 | U115: 0.07313075785
A116: 2004 | B116: 1 | C116: 5 | D116: 18 | G116: 0.05448266783 | H116: 0.01995700524 | I116: 0 | J116: 0 | K116: 6.036563172e-05 | L116: 0.01071081831 | M116: 0.08521085701 | O116: 0.04409526151 | P116: 0.02432067209 | Q116: 0 | R116: 0 | S116: 2.555514345e-05 | T116: 0.009867105661 | U116: 0.0783085944
A117: 2004 | B117: 1 | C117: 5 | D117: 19 | G117: 0.0541315461 | H117: 0.0196163043 | I117: 0.00121485 | J117: 1.61e-06 | K117: 6.036563172e-05 | L117: 0.009121779721 | M117: 0.08414645575 | O117: 0.04381108298 | P117: 0.02390547573 | Q117: 0.0006864268391 | R117: 2.139920323e-06 | S117: 2.555514345e-05 | T117: 0.008403238826 | U117: 0.07683391944
A118: 2004 | B118: 1 | C118: 5 | D118: 20 | G118: 0.0535609451 | H118: 0.01899782815 | I118: 0.00121485 | J118: 1.61e-06 | K118: 6.036563172e-05 | L118: 0.008507567435 | M118: 0.08234316632 | O118: 0.04334927005 | P118: 0.02315176767 | Q118: 0.0006864268391 | R118: 2.139920323e-06 | S118: 2.555514345e-05 | T118: 0.007837409274 | U118: 0.0750525689
A119: 2004 | B119: 1 | C119: 5 | D119: 21 | G119: 0.04981199221 | H119: 0.01903059175 | I119: 0.00121485 | J119: 1.61e-06 | K119: 6.036563172e-05 | L119: 0.009387069735 | M119: 0.07950647932 | O119: 0.04031507468 | P119: 0.02319169515 | Q119: 0.0006864268391 | R119: 2.139920323e-06 | S119: 2.555514345e-05 | T119: 0.008647631413 | U119: 0.07286852315
A120: 2004 | B120: 1 | C120: 5 | D120: 22 | G120: 0.04651439747 | H120: 0.01806778063 | I120: 0.00121485 | J120: 1.61e-06 | K120: 6.036563172e-05 | L120: 0.008688870573 | M120: 0.07454787431 | O120: 0.03764618368 | P120: 0.02201836212 | Q120: 0.0006864268391 | R120: 2.139920323e-06 | S120: 2.555514345e-05 | T120: 0.008004430801 | U120: 0.0683830985
A121: 2004 | B121: 1 | C121: 5 | D121: 23 | G121: 0.04360238155 | H121: 0.01728807309 | I121: 0.00121485 | J121: 1.61e-06 | K121: 6.036563172e-05 | L121: 0.007439210261 | M121: 0.06960649053 | O121: 0.03528935886 | P121: 0.02106816888 | Q121: 0.0006864268391 | R121: 2.139920323e-06 | S121: 2.555514345e-05 | T121: 0.006853208739 | U121: 0.06392485838
A122: 2004 | B122: 1 | C122: 5 | D122: 24 | G122: 0.0351058324 | H122: 0.01686744068 | I122: 0.00121485 | J122: 1.61e-06 | K122: 6.036563172e-05 | L122: 0.01027826311 | M122: 0.06352836182 | O122: 0.02841272136 | P122: 0.02055556377 | Q122: 0.0006864268391 | R122: 2.139920323e-06 | S122: 2.555514345e-05 | T122: 0.009468623696 | U122: 0.05915103073
A123: 2004 | B123: 1 | C123: 6 | D123: 1 | G123: 0.0300479337 | H123: 0.01659189987 | I123: 0.00121485 | J123: 1.61e-06 | K123: 6.036563172e-05 | L123: 0.01102078003 | M123: 0.05893743923 | O123: 0.02431913757 | P123: 0.02021977503 | Q123: 0.0006864268391 | R123: 2.139920323e-06 | S123: 2.555514345e-05 | T123: 0.01015265107 | U123: 0.05540568557
A124: 2004 | B124: 1 | C124: 6 | D124: 2 | G124: 0.02933352279 | H124: 0.01590407728 | I124: 0.00121485 | J124: 1.61e-06 | K124: 6.036563172e-05 | L124: 0.01157352827 | M124: 0.05808795398 | O124: 0.02374093285 | P124: 0.0193815577 | Q124: 0.0006864268391 | R124: 2.139920323e-06 | S124: 2.555514345e-05 | T124: 0.01066185822 | U124: 0.05449847067
A125: 2004 | B125: 1 | C125: 6 | D125: 3 | G125: 0.02932419205 | H125: 0.01577156635 | I125: 0.00121485 | J125: 1.61e-06 | K125: 6.036563172e-05 | L125: 0.01145478868 | M125: 0.05782737271 | O125: 0.02373338106 | P125: 0.0192200728 | Q125: 0.0006864268391 | R125: 2.139920323e-06 | S125: 2.555514345e-05 | T125: 0.01055247199 | U125: 0.05422004775
A126: 2004 | B126: 1 | C126: 6 | D126: 4 | G126: 0.02980617566 | H126: 0.0154727676 | I126: 0.00121485 | J126: 1.61e-06 | K126: 6.036563172e-05 | L126: 0.01181360615 | M126: 0.05836937505 | O126: 0.02412347197 | P126: 0.01885594069 | Q126: 0.0006864268391 | R126: 2.139920323e-06 | S126: 2.555514345e-05 | T126: 0.01088302469 | U126: 0.05457655926
A127: 2004 | B127: 1 | C127: 6 | D127: 5 | G127: 0.03101200328 | H127: 0.01556284248 | I127: 0.00121485 | J127: 1.61e-06 | K127: 6.036563172e-05 | L127: 0.01186575577 | M127: 0.05971742716 | O127: 0.02509940223 | P127: 0.01896571074 | Q127: 0.0006864268391 | R127: 2.139920323e-06 | S127: 2.555514345e-05 | T127: 0.01093106638 | U127: 0.05571030126
A128: 2004 | B128: 1 | C128: 6 | D128: 6 | G128: 0.03323665872 | H128: 0.01612590001 | I128: 0.00121485 | J128: 1.61e-06 | K128: 6.036563172e-05 | L128: 0.01122694404 | M128: 0.0618663284 | O128: 0.02689991544 | P128: 0.01965188272 | Q128: 0.0006864268391 | R128: 2.139920323e-06 | S128: 2.555514345e-05 | T128: 0.01034257513 | U128: 0.05760849519
A129: 2004 | B129: 1 | C129: 6 | D129: 7 | G129: 0.04017671575 | H129: 0.01707307898 | I129: 0 | J129: 0 | K129: 6.036563172e-05 | L129: 0.01062588872 | M129: 0.06793604908 | O129: 0.03251681421 | P129: 0.02080616558 | Q129: 0 | R129: 0 | S129: 2.555514345e-05 | T129: 0.009788866137 | U129: 0.06313740107
A130: 2004 | B130: 1 | C130: 6 | D130: 8 | G130: 0.04584785375 | H130: 0.01893796012 | I130: 0 | J130: 0 | K130: 6.036563172e-05 | L130: 0.01228304395 | M130: 0.07712922345 | O130: 0.03710672001 | P130: 0.0230788093 | Q130: 0 | R130: 0 | S130: 2.555514345e-05 | T130: 0.01131548392 | U130: 0.07152656838
A131: 2004 | B131: 1 | C131: 6 | D131: 9 | G131: 0.0467333851 | H131: 0.02042858924 | I131: 0 | J131: 0 | K131: 6.036563172e-05 | L131: 0.01386766758 | M131: 0.08109000754 | O131: =G131*X$5 -> 0.03782342016 | P131: =H131*Y$5 -> 0.02489536953 | Q131: =I131*Z$5 -> 0 | R131: =J131*AA$5 -> 0 | S131: =K131*AB$5 -> 2.555514345e-05 | T131: =L131*AC$5 -> 0.01277528357 | U131: =SUM(O131:T131) -> 0.07551962841
A132: 2004 | B132: 1 | C132: 6 | D132: 10 | G132: 0.04274883839 | H132: 0.0213434941 | I132: 0 | J132: 0 | K132: 6.036563172e-05 | L132: 0.01633972 | M132: 0.08049241813 | O132: 0.03459854818 | P132: 0.02601032144 | Q132: 0 | R132: 0 | S132: 2.555514345e-05 | T132: 0.01505260747 | U132: 0.07568703223
A133: 2004 | B133: 1 | C133: 6 | D133: 11 | G133: 0.04183398523 | H133: 0.02183410239 | I133: 0 | J133: 0 | K133: 6.036563172e-05 | L133: 0.0161802713 | M133: 0.07990872455 | O133: 0.03385811657 | P133: 0.0266082029 | Q133: 0 | R133: 0 | S133: 2.555514345e-05 | T133: 0.01490571886 | U133: 0.07539759347
A134: 2004 | B134: 1 | C134: 6 | D134: 12 | G134: 0.04243041456 | H134: 0.02146992552 | I134: 0 | J134: 0 | K134: 6.036563172e-05 | L134: 0.01466770587 | M134: 0.07862841158 | O134: 0.03434083352 | P134: 0.02616439752 | Q134: 0 | R134: 0 | S134: 2.555514345e-05 | T134: 0.01351230124 | U134: 0.07404308743
A135: 2004 | B135: 1 | C135: 6 | D135: 13 | G135: 0.0403856288 | H135: 0.02152645428 | I135: 0 | J135: 0 | K135: 6.036563172e-05 | L135: 0.01440109744 | M135: 0.07637354615 | O135: 0.03268589689 | P135: 0.02623328648 | Q135: 0 | R135: 0 | S135: 2.555514345e-05 | T135: 0.01326669409 | U135: 0.07221143261
A136: 2004 | B136: 1 | C136: 6 | D136: 14 | G136: 0.03909488943 | H136: 0.02153264393 | I136: 0 | J136: 0 | K136: 6.036563172e-05 | L136: 0.01490391544 | M136: 0.07559181443 | O136: 0.03164124375 | P136: 0.02624082952 | Q136: 0 | R136: 0 | S136: 2.555514345e-05 | T136: 0.01372990411 | U136: 0.07163753253
A137: 2004 | B137: 1 | C137: 6 | D137: 15 | G137: 0.03835442051 | H137: 0.0210916108 | I137: 0 | J137: 0 | K137: 6.036563172e-05 | L137: 0.01381144534 | M137: 0.07331784228 | O137: 0.03104194911 | P137: 0.025703363 | Q137: 0 | R137: 0 | S137: 2.555514345e-05 | T137: 0.01272349007 | U137: 0.06949435733
A138: 2004 | B138: 1 | C138: 6 | D138: 16 | G138: 0.03883117736 | H138: 0.02087957041 | I138: 0 | J138: 0 | K138: 6.036563172e-05 | L138: 0.01476623274 | M138: 0.07453734614 | O138: 0.03142780977 | P138: 0.02544495927 | Q138: 0 | R138: 0 | S138: 2.555514345e-05 | T138: 0.01360306695 | U138: 0.07050139113
A139: 2004 | B139: 1 | C139: 6 | D139: 17 | G139: 0.04397414356 | H139: 0.02056664455 | I139: 0 | J139: 0 | K139: 6.036563172e-05 | L139: 0.01337234036 | M139: 0.0779734941 | O139: 0.0355902425 | P139: 0.0250636111 | Q139: 0 | R139: 0 | S139: 2.555514345e-05 | T139: 0.01231897428 | U139: 0.07299838301
A140: 2004 | B140: 1 | C140: 6 | D140: 18 | G140: 0.05009517902 | H140: 0.0207556416 | I140: 0 | J140: 0 | K140: 6.036563172e-05 | L140: 0.01274637355 | M140: 0.08365755981 | O140: 0.04054427045 | P140: 0.025293933 | Q140: 0 | R140: 0 | S140: 2.555514345e-05 | T140: 0.01174231613 | U140: 0.07760607472
A141: 2004 | B141: 1 | C141: 6 | D141: 19 | G141: 0.05213215523 | H141: 0.02031994206 | I141: 0.00121485 | J141: 1.61e-06 | K141: 6.036563172e-05 | L141: 0.01089972223 | M141: 0.08462864516 | O141: 0.04219288646 | P141: 0.02476296628 | Q141: 0.0006864268391 | R141: 2.139920323e-06 | S141: 2.555514345e-05 | T141: 0.01004112924 | U141: 0.07771110388
A142: 2004 | B142: 1 | C142: 6 | D142: 20 | G142: 0.05260030956 | H142: 0.01959236264 | I142: 0.00121485 | J142: 1.61e-06 | K142: 6.036563172e-05 | L142: 0.00868886688 | M142: 0.0821583647 | O142: 0.04257178471 | P142: 0.02387629914 | Q142: 0.0006864268391 | R142: 2.139920323e-06 | S142: 2.555514345e-05 | T142: 0.008004427399 | U142: 0.07516663316
A143: 2004 | B143: 1 | C143: 6 | D143: 21 | G143: 0.0505092563 | H143: 0.01900583069 | I143: 0.00121485 | J143: 1.61e-06 | K143: 6.036563172e-05 | L143: 0.008380241815 | M143: 0.07917215444 | O143: 0.04087940172 | P143: 0.02316152 | Q143: 0.0006864268391 | R143: 2.139920323e-06 | S143: 2.555514345e-05 | T143: 0.007720113349 | U143: 0.07247515698
A144: 2004 | B144: 1 | C144: 6 | D144: 22 | G144: 0.04689117577 | H144: 0.01820659824 | I144: 0.00121485 | J144: 1.61e-06 | K144: 6.036563172e-05 | L144: 0.008682156892 | M144: 0.07505675653 | O144: 0.03795112722 | P144: 0.02218753266 | Q144: 0.0006864268391 | R144: 2.139920323e-06 | S144: 2.555514345e-05 | T144: 0.007998245969 | U144: 0.06885102775
A145: 2004 | B145: 1 | C145: 6 | D145: 23 | G145: 0.04449199493 | H145: 0.01727871177 | I145: 0.00121485 | J145: 1.61e-06 | K145: 6.036563172e-05 | L145: 0.007442173168 | M145: 0.0704897055 | O145: 0.03600936279 | P145: 0.02105676067 | Q145: 0.0006864268391 | R145: 2.139920323e-06 | S145: 2.555514345e-05 | T145: 0.006855938252 | U145: 0.06463618362
A146: 2004 | B146: 1 | C146: 6 | D146: 24 | G146: 0.03626894225 | H146: 0.01696754304 | I146: 0.00121485 | J146: 1.61e-06 | K146: 6.036563172e-05 | L146: 0.009726012652 | M146: 0.06423932357 | O146: 0.02935407822 | P146: 0.02067755385 | Q146: 0.0006864268391 | R146: 2.139920323e-06 | S146: 2.555514345e-05 | T146: 0.008959875116 | U146: 0.05970562909
A147: 2004 | B147: 1 | C147: 7 | D147: 1 | G147: 0.03035666523 | H147: 0.01651295305 | I147: 0.00121485 | J147: 1.61e-06 | K147: 6.036563172e-05 | L147: 0.01115248462 | M147: 0.05929892854 | O147: 0.02456900782 | P147: 0.02012356622 | Q147: 0.0006864268391 | R147: 2.139920323e-06 | S147: 2.555514345e-05 | T147: 0.01027398102 | U147: 0.05568067696
A148: 2004 | B148: 1 | C148: 7 | D148: 2 | G148: 0.02965782494 | H148: 0.01580093517 | I148: 0.00121485 | J148: 1.61e-06 | K148: 6.036563172e-05 | L148: 0.01170864991 | M148: 0.05844423565 | O148: 0.02400340509 | P148: 0.01925586321 | Q148: 0.0006864268391 | R148: 2.139920323e-06 | S148: 2.555514345e-05 | T148: 0.01078633606 | U148: 0.05475972627
A149: 2004 | B149: 1 | C149: 7 | D149: 3 | G149: 0.02969143823 | H149: 0.01556673659 | I149: 0.00121485 | J149: 1.61e-06 | K149: 6.036563172e-05 | L149: 0.01164705235 | M149: 0.05818205279 | O149: 0.02403060983 | P149: 0.01897045631 | Q149: 0.0006864268391 | R149: 2.139920323e-06 | S149: 2.555514345e-05 | T149: 0.01072959066 | U149: 0.05444477871
A150: 2004 | B150: 1 | C150: 7 | D150: 4 | G150: 0.03016891265 | H150: 0.01529038076 | I150: 0.00121485 | J150: 1.61e-06 | K150: 6.036563172e-05 | L150: 0.01199126427 | M150: 0.05872738331 | O150: 0.02441705125 | P150: 0.01863367435 | Q150: 0.0006864268391 | R150: 2.139920323e-06 | S150: 2.555514345e-05 | T150: 0.01104668832 | U150: 0.05481153582
A151: 2004 | B151: 1 | C151: 7 | D151: 5 | G151: 0.03136737354 | H151: 0.0154267957 | I151: 0.00121485 | J151: 1.61e-06 | K151: 6.036563172e-05 | L151: 0.01201270362 | M151: 0.06008369849 | O151: 0.02538701929 | P151: 0.01879991687 | Q151: 0.0006864268391 | R151: 2.139920323e-06 | S151: 2.555514345e-05 | T151: 0.01106643885 | U151: 0.05596749692
A152: 2004 | B152: 1 | C152: 7 | D152: 6 | G152: 0.03363061968 | H152: 0.01594659262 | I152: 0.00121485 | J152: 1.61e-06 | K152: 6.036563172e-05 | L152: 0.01139174906 | M152: 0.062245787 | O152: 0.02721876569 | P152: 0.01943336916 | Q152: 0.0006864268391 | R152: 2.139920323e-06 | S152: 2.555514345e-05 | T152: 0.01049439813 | U152: 0.05786065487
A153: 2004 | B153: 1 | C153: 7 | D153: 7 | G153: 0.04061684733 | H153: 0.01691444316 | I153: 0 | J153: 0 | K153: 6.036563172e-05 | L153: 0.01076107254 | M153: 0.06835272866 | O153: 0.0328730324 | P153: 0.0206128435 | Q153: 0 | R153: 0 | S153: 2.555514345e-05 | T153: 0.009913401256 | U153: 0.0634248323
A154: 2004 | B154: 1 | C154: 7 | D154: 8 | G154: 0.0464254891 | H154: 0.01850313429 | I154: 0 | J154: 0 | K154: 6.036563172e-05 | L154: 0.0126133063 | M154: 0.07760229532 | O154: 0.03757422616 | P154: 0.02254890732 | Q154: 0 | R154: 0 | S154: 2.555514345e-05 | T154: 0.01161973085 | U154: 0.07176841947
A155: 2004 | B155: 1 | C155: 7 | D155: 9 | G155: 0.04729192974 | H155: 0.02001831228 | I155: 0 | J155: 0 | K155: 6.036563172e-05 | L155: 0.01421676102 | M155: 0.08158736867 | O155: 0.03827547535 | P155: 0.02439538412 | Q155: 0 | R155: 0 | S155: 2.555514345e-05 | T155: 0.01309687822 | U155: 0.07579329284
A156: 2004 | B156: 1 | C156: 7 | D156: 10 | G156: 0.0432962395 | H156: 0.02090724738 | I156: 0 | J156: 0 | K156: 6.036563172e-05 | L156: 0.01672226125 | M156: 0.08098611376 | O156: 0.0350415844 | P156: 0.02547868789 | Q156: 0 | R156: 0 | S156: 2.555514345e-05 | T156: 0.01540501517 | U156: 0.0759508426
A157: 2004 | B157: 1 | C157: 7 | D157: 11 | G157: 0.04235413611 | H157: 0.02145930534 | I157: 0 | J157: 0 | K157: 6.036563172e-05 | L157: 0.01652503309 | M157: 0.08039884017 | O157: 0.03427909796 | P157: 0.0261514552 | Q157: 0 | R157: 0 | S157: 2.555514345e-05 | T157: 0.01522332307 | U157: 0.07567943137
A158: 2004 | B158: 1 | C158: 7 | D158: 12 | G158: 0.04291980141 | H158: 0.02116023713 | I158: 0 | J158: 0 | K158: 6.036563172e-05 | L158: 0.01497027487 | M158: 0.07911067904 | O158: 0.03473691621 | P158: 0.02578699471 | Q158: 0 | R158: 0 | S158: 2.555514345e-05 | T158: 0.01379103627 | U158: 0.07434050234
A159: 2004 | B159: 1 | C159: 7 | D159: 13 | G159: 0.04089277844 | H159: 0.02113116291 | I159: 0 | J159: 0 | K159: 6.036563172e-05 | L159: 0.01475767445 | M159: 0.07684198142 | O159: 0.03309635579 | P159: 0.02575156331 | Q159: 0 | R159: 0 | S159: 2.555514345e-05 | T159: 0.01359518282 | U159: 0.07246865706
A160: 2004 | B160: 1 | C160: 7 | D160: 14 | G160: 0.03957939272 | H160: 0.02117994356 | I160: 0 | J160: 0 | K160: 6.036563172e-05 | L160: 0.01523574766 | M160: 0.07605544957 | O160: 0.03203337395 | P160: 0.02581101002 | Q160: 0 | R160: 0 | S160: 2.555514345e-05 | T160: 0.01403559724 | U160: 0.07190553635
A161: 2004 | B161: 1 | C161: 7 | D161: 15 | G161: 0.03886063642 | H161: 0.02066194931 | I161: 0 | J161: 0 | K161: 6.036563172e-05 | L161: 0.01418458049 | M161: 0.07376753186 | O161: 0.03145165231 | P161: 0.02517975458 | Q161: 0 | R161: 0 | S161: 2.555514345e-05 | T161: 0.01306723262 | U161: 0.06972419465
A162: 2004 | B162: 1 | C162: 7 | D162: 16 | G162: 0.03925026891 | H162: 0.02066134525 | I162: 0 | J162: 0 | K162: 6.036563172e-05 | L162: 0.01502253563 | M162: 0.07499451542 | O162: 0.03176699932 | P162: 0.02517901843 | Q162: 0 | R162: 0 | S162: 2.555514345e-05 | T162: 0.01383918035 | U162: 0.07081075324
A163: 2004 | B163: 1 | C163: 7 | D163: 17 | G163: 0.04423862029 | H163: 0.02081070119 | I163: 0 | J163: 0 | K163: 6.036563172e-05 | L163: 0.01334205443 | M163: 0.07845174154 | O163: 0.03580429535 | P163: 0.02536103155 | Q163: 0 | R163: 0 | S163: 2.555514345e-05 | T163: 0.01229107403 | U163: 0.07348195608
A164: 2004 | B164: 1 | C164: 7 | D164: 18 | G164: 0.0503630614 | H164: 0.02106412566 | I164: 0 | J164: 0 | K164: 6.036563172e-05 | L164: 0.01268311473 | M164: 0.08417066742 | O164: 0.04076107965 | P164: 0.02566986814 | Q164: 0 | R164: 0 | S164: 2.555514345e-05 | T164: 0.01168404033 | U164: 0.07814054326
A165: 2004 | B165: 1 | C165: 7 | D165: 19 | G165: 0.05251338115 | H165: 0.0203610556 | I165: 0.00121485 | J165: 1.61e-06 | K165: 6.036563172e-05 | L165: 0.01099644608 | M165: 0.08514770846 | O165: 0.04250142966 | P165: 0.02481306944 | Q165: 0.0006864268391 | R165: 2.139920323e-06 | S165: 2.555514345e-05 | T165: 0.01013023395 | U165: 0.07815885495
A166: 2004 | B166: 1 | C166: 7 | D166: 20 | G166: 0.05302959692 | H166: 0.01953031527 | I166: 0.00121485 | J166: 1.61e-06 | K166: 6.036563172e-05 | L166: 0.008825546339 | M166: 0.08266228416 | O166: 0.04291922619 | P166: 0.02380068491 | Q166: 0.0006864268391 | R166: 2.139920323e-06 | S166: 2.555514345e-05 | T166: 0.008130340342 | U166: 0.07556437334
A167: 2004 | B167: 1 | C167: 7 | D167: 21 | G167: 0.05092259781 | H167: 0.01894702462 | I167: 0.00121485 | J167: 1.61e-06 | K167: 6.036563172e-05 | L167: 0.008511305736 | M167: 0.0796577538 | O167: 0.04121393751 | P167: 0.02308985579 | Q167: 0.0006864268391 | R167: 2.139920323e-06 | S167: 2.555514345e-05 | T167: 0.007840853102 | U167: 0.0728587683
A168: 2004 | B168: 1 | C168: 7 | D168: 22 | G168: 0.04726426612 | H168: 0.01820138912 | I168: 0.00121485 | J168: 1.61e-06 | K168: 6.036563172e-05 | L168: 0.008774635578 | M168: 0.07551711646 | O168: 0.03825308594 | P168: 0.02218118456 | Q168: 0.0006864268391 | R168: 2.139920323e-06 | S168: 2.555514345e-05 | T168: 0.008083439924 | U168: 0.06923183232
A169: 2004 | B169: 1 | C169: 7 | D169: 23 | G169: 0.04488115176 | H169: 0.01721897061 | I169: 0.00121485 | J169: 1.61e-06 | K169: 6.036563172e-05 | L169: 0.007545105497 | M169: 0.07092205351 | O169: 0.03632432483 | P169: 0.02098395691 | Q169: 0.0006864268391 | R169: 2.139920323e-06 | S169: 2.555514345e-05 | T169: 0.006950762395 | U169: 0.06497316604
A170: 2004 | B170: 1 | C170: 7 | D170: 24 | G170: 0.03663712778 | H170: 0.01684676718 | I170: 0.00121485 | J170: 1.61e-06 | K170: 6.036563172e-05 | L170: 0.009872609769 | M170: 0.06463333036 | O170: 0.02965206725 | P170: 0.02053036993 | Q170: 0.0006864268391 | R170: 2.139920323e-06 | S170: 2.555514345e-05 | T170: 0.009094924484 | U170: 0.05999148357
A171: 2004 | B171: 1 | C171: 8 | D171: 1 | G171: 0.02892664627 | H171: 0.01638042275 | I171: 0.00121485 | J171: 1.61e-06 | K171: 6.036563172e-05 | L171: 0.01078708844 | M171: 0.0573709831 | O171: 0.02341162947 | P171: 0.01996205772 | Q171: 0.0006864268391 | R171: 2.139920323e-06 | S171: 2.555514345e-05 | T171: 0.009937367832 | U171: 0.05402517693
A172: 2004 | B172: 1 | C172: 8 | D172: 2 | G172: 0.02800206759 | H172: 0.01616222992 | I172: 0.00121485 | J172: 1.61e-06 | K172: 6.036563172e-05 | L172: 0.01110295224 | M172: 0.05654407539 | O172: 0.02266332656 | P172: 0.01969615629 | Q172: 0.0006864268391 | R172: 2.139920323e-06 | S172: 2.555514345e-05 | T172: 0.01022835041 | U172: 0.05330195517
A173: 2004 | B173: 1 | C173: 8 | D173: 3 | G173: 0.02805351345 | H173: 0.01583926845 | I173: 0.00121485 | J173: 1.61e-06 | K173: 6.036563172e-05 | L173: 0.01112081012 | M173: 0.05629041765 | O173: 0.022704964 | P173: 0.01930257819 | Q173: 0.0006864268391 | R173: 2.139920323e-06 | S173: 2.555514345e-05 | T173: 0.01024480159 | U173: 0.05296646568
A174: 2004 | B174: 1 | C174: 8 | D174: 4 | G174: 0.02859362209 | H174: 0.01534460299 | I174: 0.00121485 | J174: 1.61e-06 | K174: 6.036563172e-05 | L174: 0.01160296605 | M174: 0.05681801677 | O174: 0.02314209809 | P174: 0.01869975246 | Q174: 0.0006864268391 | R174: 2.139920323e-06 | S174: 2.555514345e-05 | T174: 0.01068897713 | U174: 0.05324494959
A175: 2004 | B175: 1 | C175: 8 | D175: 5 | G175: 0.02978582872 | H175: 0.01535026899 | I175: 0.00121485 | J175: 1.61e-06 | K175: 6.036563172e-05 | L175: 0.01171731381 | M175: 0.05813023716 | O175: 0.02410700428 | P175: 0.01870665735 | Q175: 0.0006864268391 | R175: 2.139920323e-06 | S175: 2.555514345e-05 | T175: 0.01079431749 | U175: 0.05432210102
A176: 2004 | B176: 1 | C176: 8 | D176: 6 | G176: 0.03194926108 | H176: 0.01582984417 | I176: 0.00121485 | J176: 1.61e-06 | K176: 6.036563172e-05 | L176: 0.01116609596 | M176: 0.06022202685 | O176: 0.02585796692 | P176: 0.01929109326 | Q176: 0.0006864268391 | R176: 2.139920323e-06 | S176: 2.555514345e-05 | T176: 0.01028652018 | U176: 0.05614970226
A177: 2004 | B177: 1 | C177: 8 | D177: 7 | G177: 0.03856121626 | H177: 0.0170146977 | I177: 0 | J177: 0 | K177: 6.036563172e-05 | L177: 0.01049414015 | M177: 0.06613041974 | O177: 0.03120931817 | P177: 0.02073501904 | Q177: 0 | R177: 0 | S177: 2.555514345e-05 | T177: 0.009667495667 | U177: 0.06163738801
A178: 2004 | B178: 1 | C178: 8 | D178: 8 | G178: 0.04403472602 | H178: 0.01905841928 | I178: 0 | J178: 0 | K178: 6.036563172e-05 | L178: 0.0119257488 | M178: 0.07507925974 | O178: 0.0356392746 | P178: 0.02322560726 | Q178: 0 | R178: 0 | S178: 2.555514345e-05 | T178: 0.01098633363 | U178: 0.06987677064
A179: 2004 | B179: 1 | C179: 8 | D179: 9 | G179: 0.04483215668 | H179: 0.02087936107 | I179: 0 | J179: 0 | K179: 6.036563172e-05 | L179: 0.01316289134 | M179: 0.07893477473 | O179: 0.03628467091 | P179: 0.02544470416 | Q179: 0 | R179: 0 | S179: 2.555514345e-05 | T179: 0.01212602397 | U179: 0.07388095419
A180: 2004 | B180: 1 | C180: 8 | D180: 10 | G180: 0.04084135204 | H180: 0.02204624493 | I180: 0 | J180: 0 | K180: 6.036563172e-05 | L180: 0.0154050965 | M180: 0.0783530591 | O180: 0.03305473411 | P180: 0.02686673113 | Q180: 0 | R180: 0 | S180: 2.555514345e-05 | T180: 0.01419160613 | U180: 0.07413862651
A181: 2004 | B181: 1 | C181: 8 | D181: 11 | G181: 0.03990340759 | H181: 0.02263145696 | I181: 0 | J181: 0 | K181: 6.036563172e-05 | L181: 0.01518965509 | M181: 0.07778488527 | O181: 0.03229561369 | P181: 0.02757990175 | Q181: 0 | R181: 0 | S181: 2.555514345e-05 | T181: 0.01399313547 | U181: 0.07389420605
A182: 2004 | B182: 1 | C182: 8 | D182: 12 | G182: 0.04055704119 | H182: 0.02217972207 | I182: 0 | J182: 0 | K182: 6.036563172e-05 | L182: 0.01374147421 | M182: 0.07653860309 | O182: 0.03282462861 | P182: 0.02702939349 | Q182: 0 | R182: 0 | S182: 2.555514345e-05 | T182: 0.01265903071 | U182: 0.07253860795
A183: 2004 | B183: 1 | C183: 8 | D183: 13 | G183: 0.03861281217 | H183: 0.02215336255 | I183: 0 | J183: 0 | K183: 6.036563172e-05 | L183: 0.01351712733 | M183: 0.07434366768 | O183: 0.03125107705 | P183: 0.02699727037 | Q183: 0 | R183: 0 | S183: 2.555514345e-05 | T183: 0.01245235608 | U183: 0.07072625865
A184: 2004 | B184: 1 | C184: 8 | D184: 14 | G184: 0.0373598667 | H184: 0.02212922022 | I184: 0 | J184: 0 | K184: 6.036563172e-05 | L184: 0.01403325632 | M184: 0.07358270887 | O184: 0.03023701221 | P184: 0.02696784924 | Q184: 0 | R184: 0 | S184: 2.555514345e-05 | T184: 0.01292782856 | U184: 0.07015824514
A185: 2004 | B185: 1 | C185: 8 | D185: 15 | G185: 0.03671053451 | H185: 0.0215481939 | I185: 0 | J185: 0 | K185: 6.036563172e-05 | L185: 0.01305008287 | M185: 0.07136917691 | O185: 0.0297114786 | P185: 0.02625977954 | Q185: 0 | R185: 0 | S185: 2.555514345e-05 | T185: 0.01202210165 | U185: 0.06801891494
A186: 2004 | B186: 1 | C186: 8 | D186: 16 | G186: 0.03721600721 | H186: 0.02131165626 | I186: 0 | J186: 0 | K186: 6.036563172e-05 | L186: 0.01396824431 | M186: 0.07255627341 | O186: 0.03012058028 | P186: 0.02597152214 | Q186: 0 | R186: 0 | S186: 2.555514345e-05 | T186: 0.01286793767 | U186: 0.06898559524
A187: 2004 | B187: 1 | C187: 8 | D187: 17 | G187: 0.04227623864 | H187: 0.02091974681 | I187: 0 | J187: 0 | K187: 6.036563172e-05 | L187: 0.01264474022 | M187: 0.07590109131 | O187: 0.03421605205 | P187: 0.02549392037 | Q187: 0 | R187: 0 | S187: 2.555514345e-05 | T187: 0.01164868866 | U187: 0.07138421623
A188: 2004 | B188: 1 | C188: 8 | D188: 18 | G188: 0.04837064209 | H188: 0.02085989869 | I188: 0 | J188: 0 | K188: 6.036563172e-05 | L188: 0.01214317452 | M188: 0.08143408093 | O188: 0.03914852552 | P188: 0.02542098626 | Q188: 0 | R188: 0 | S188: 2.555514345e-05 | T188: 0.01118663229 | U188: 0.07578169922
A189: 2004 | B189: 1 | C189: 8 | D189: 19 | G189: 0.05051044032 | H189: 0.02006439951 | I189: 0.00121485 | J189: 1.61e-06 | K189: 6.036563172e-05 | L189: 0.01052769406 | M189: 0.08237935953 | O189: 0.04088036 | P189: 0.02445154849 | Q189: 0.0006864268391 | R189: 2.139920323e-06 | S189: 2.555514345e-05 | T189: 0.009698406473 | U189: 0.07574443686
A190: 2004 | B190: 1 | C190: 8 | D190: 20 | G190: 0.05094061002 | H190: 0.01934858519 | I190: 0.00121485 | J190: 1.61e-06 | K190: 6.036563172e-05 | L190: 0.00840871627 | M190: 0.07997473711 | O190: 0.04122851559 | P190: 0.02357921894 | Q190: 0.0006864268391 | R190: 2.139920323e-06 | S190: 2.555514345e-05 | T190: 0.007746344814 | U190: 0.07326820125
A191: 2004 | B191: 1 | C191: 8 | D191: 21 | G191: 0.04892182907 | H191: 0.01873987248 | I191: 0.00121485 | J191: 1.61e-06 | K191: 6.036563172e-05 | L191: 0.008129362578 | M191: 0.07706788976 | O191: 0.03959462582 | P191: 0.02283740913 | Q191: 0.0006864268391 | R191: 2.139920323e-06 | S191: 2.555514345e-05 | T191: 0.007488996373 | U191: 0.07063515323
A192: 2004 | B192: 1 | C192: 8 | D192: 22 | G192: 0.04533716376 | H192: 0.01806885738 | I192: 0.00121485 | J192: 1.61e-06 | K192: 6.036563172e-05 | L192: 0.008379026679 | M192: 0.07306187345 | O192: 0.03669339575 | P192: 0.0220196743 | Q192: 0.0006864268391 | R192: 2.139920323e-06 | S192: 2.555514345e-05 | T192: 0.007718993932 | U192: 0.06714618588
A193: 2004 | B193: 1 | C193: 8 | D193: 23 | G193: 0.04287772288 | H193: 0.01735334427 | I193: 0.00121485 | J193: 1.61e-06 | K193: 6.036563172e-05 | L193: 0.007108313213 | M193: 0.06861620599 | O193: 0.03470286017 | P193: 0.02114771182 | Q193: 0.0006864268391 | R193: 2.139920323e-06 | S193: 2.555514345e-05 | T193: 0.006548377116 | U193: 0.06311307101
A194: 2004 | B194: 1 | C194: 8 | D194: 24 | G194: 0.03492368517 | H194: 0.01685126674 | I194: 0.00121485 | J194: 1.61e-06 | K194: 6.036563172e-05 | L194: 0.009480173988 | M194: 0.06253195153 | O194: 0.02826530146 | P194: 0.02053585335 | Q194: 0.0006864268391 | R194: 2.139920323e-06 | S194: 2.555514345e-05 | T194: 0.008733401657 | U194: 0.05824867836
A195: 2004 | B195: 1 | C195: 9 | D195: 1 | G195: 0.0319002445 | H195: 0.01671141507 | I195: 0.00121485 | J195: 1.61e-06 | K195: 6.036563172e-05 | L195: 0.01089656175 | M195: 0.06078504695 | O195: =G195*X$5 -> 0.02581829561 | P195: =H195*Y$5 -> 0.02036542262 | Q195: =I195*Z$5 -> 0.0006864268391 | R195: =J195*AA$5 -> 2.139920323e-06 | S195: =K195*AB$5 -> 2.555514345e-05 | T195: =L195*AC$5 -> 0.01003821771 | U195: =SUM(O195:T195) -> 0.05693605785
A196: 2004 | B196: 1 | C196: 9 | D196: 2 | G196: 0.03084671148 | H196: 0.01626127247 | I196: 0.00121485 | J196: 1.61e-06 | K196: 6.036563172e-05 | L196: 0.01164611288 | M196: 0.06003092246 | O196: 0.02496562418 | P196: 0.01981685482 | Q196: 0.0006864268391 | R196: 2.139920323e-06 | S196: 2.555514345e-05 | T196: 0.0107287252 | U196: 0.0562253261
A197: 2004 | B197: 1 | C197: 9 | D197: 3 | G197: 0.03044400148 | H197: 0.01620144944 | I197: 0.00121485 | J197: 1.61e-06 | K197: 6.036563172e-05 | L197: 0.01154913891 | M197: 0.05947141546 | O197: 0.02463969295 | P197: 0.01974395129 | Q197: 0.0006864268391 | R197: 2.139920323e-06 | S197: 2.555514345e-05 | T197: 0.01063939006 | U197: 0.0557371562
A198: 2004 | B198: 1 | C198: 9 | D198: 4 | G198: 0.03191577897 | H198: 0.01558324648 | I198: 0.00121485 | J198: 1.61e-06 | K198: 6.036563172e-05 | L198: 0.01156610643 | M198: 0.06034195751 | O198: 0.02583086835 | P198: 0.01899057615 | Q198: 0.0006864268391 | R198: 2.139920323e-06 | S198: 2.555514345e-05 | T198: 0.01065502102 | U198: 0.05619058741
A199: 2004 | B199: 1 | C199: 9 | D199: 5 | G199: 0.03284528011 | H199: 0.01555100828 | I199: 0.00121485 | J199: 1.61e-06 | K199: 6.036563172e-05 | L199: 0.01180002999 | M199: 0.06147314401 | O199: 0.02658315522 | P199: 0.01895128896 | Q199: 0.0006864268391 | R199: 2.139920323e-06 | S199: 2.555514345e-05 | T199: 0.01087051794 | U199: 0.05711908403
A200: 2004 | B200: 1 | C200: 9 | D200: 6 | G200: 0.03442991448 | H200: 0.01619425186 | I200: 0.00121485 | J200: 1.61e-06 | K200: 6.036563172e-05 | L200: 0.01123503621 | M200: 0.06313602818 | O200: 0.02786567074 | P200: 0.01973517993 | Q200: 0.0006864268391 | R200: 2.139920323e-06 | S200: 2.555514345e-05 | T200: 0.01035002986 | U200: 0.05866500243
... 4297 more rows

Sheet 2006 Input to CA model
A2: Feed into OEB Cost Allocation Model (version 50) sheet "I6 Customer Data", row 27
D3: 1 | E3: 2 | F3: 3 | G3: 4 | H3: 5 | I3: 6 | J3: 7 | K3: 8 | L3: 9 | M3: 10 | N3: 11 | O3: 12 | P3: 13 | Q3: 14 | R3: 15 | S3: 16 | T3: 17 | U3: 18 | V3: 19 | W3: 20
B4: ID | C4: Total | D4: Residential | E4: GS>50kW | F4: Street Lighting | G4: Sentinel Lighting | H4: USL | I4: GS<50kW
A6: kWh - 30 year weather normalized amount | C6: =SUM(D6:I6) -> 468300043.1 | D6: 239658158.5 | E6: 146047497.3 | F6: 5353155.35 | G6: 7299.44 | H6: 534100.97 | I6: 76699831.46 | J6: 0 | K6: 0 | L6: 0 | M6: 0 | N6: 0
A9: Feed into OEB Cost Allocation Model sheet (version 50) "I8 Demand Data", row 40, 45, 50, 55, 61 and 67
D10: 1 | E10: 2 | F10: 3 | G10: 4 | H10: 5 | I10: 6 | J10: 7 | K10: 8 | L10: 9 | M10: 10 | N10: 11 | O10: 12 | P10: 13 | Q10: 14 | R10: 15 | S10: 16 | T10: 17 | U10: 18 | V10: 19 | W10: 20
A11: Customer Classes | C11: Total | D11: Residential | E11: GS>50kW | F11: Street Lighting | G11: Sentinel Lighting | H11: USL | I11: GS<50kW
A13: CO-INCIDENT PEAK (kW)
A15: 1 CP
A16: Total Sytem CP | B16: DCP1 | C16: =SUM(D16:I16) -> 90994.93773 | D16: 52245.53213 | E16: 23590.97199 | F16: 0 | G16: 0 | H16: 60.36563172 | I16: 15098.06798
A18: 4 CP
A19: Total Sytem CP | B19: DCP4 | C19: =SUM(D19:I19) -> 346121.9472 | D19: 205823.4802 | E19: 87757.22632 | F19: 1290.373102 | G19: 1.702346992 | H19: 242.1747483 | I19: 51006.99042
A21: 12 CP
A22: Total Sytem CP | B22: DCP12 | C22: =SUM(D22:I22) -> 873581.3835 | D22: 491011.8213 | E22: 250324.7531 | F22: 5020.072793 | G22: 6.897899372 | H22: 729.1382967 | I22: 126488.7001
A24: NON CO_INCIDENT PEAK (kW)
A26: 1 NCP
A27: Classification NCP from Load Data Provider | B27: DNCP1 | C27: =SUM(D27:I27) -> 104158.7728 | D27: 60081.86622 | E27: 25609.11694 | F27: 1404.96 | G27: 1.865549971 | H27: 78.34950269 | I27: 16982.61458
A29: 4 NCP
A30: Classification NCP from Load Data Provider | B30: DNCP4 | C30: =SUM(D30:I30) -> 390421.2458 | D30: 223469.2014 | E30: 98329.20966 | F30: 5213.623472 | G30: 7.103304655 | H30: 268.4472625 | I30: 63133.66063
A32: 12 NCP
A33: Classification NCP from Load Data Provider | B33: DNCP12 | C33: =SUM(D33:I33) -> 993309.0826 | D33: 529017.034 | E33: 276653.0309 | F33: 14692.13854 | G33: 20.05776325 | H33: 729.1382967 | I33: 172197.6832

Sheet Revised Inputs to CA model
A2: Feed into OEB Cost Allocation Model (version 50) sheet "I6 Customer Data", row 27
B4: ID | C4: Total | D4: ='Hourly load shapes by class'!G2 -> Residential | E4: ='Hourly load shapes by class'!H2 -> GS>50kW | F4: ='Hourly load shapes by class'!I2 -> Street Lighting | G4: ='Hourly load shapes by class'!J2 -> Sentinel Lighting | H4: ='Hourly load shapes by class'!K2 -> USL | I4: ='Hourly load shapes by class'!L2 -> GS<50kW
A6: kWh - 30 year weather normalized amount | C6: =SUM(D6:I6) -> 443271791.6 | D6: ='Hourly load shapes by class'!X4 -> 193966073.9 | E6: ='Hourly load shapes by class'!Y4 -> 177981277.7 | F6: 430600.273 | G6: ='Hourly load shapes by class'!AA4 -> 9702 | H6: ='Hourly load shapes by class'!AB4 -> 226105.9234 | I6: ='Hourly load shapes by class'!AC4 -> 70658031.81
A9: Feed into OEB Cost Allocation Model sheet (version 50) "I8 Demand Data", row 40, 45, 50, 55, 61 and 67 | K9: 2024 Demand Data
A11: Customer Classes | C11: Total | D11: ='Hourly load shapes by class'!G2 -> Residential | E11: ='Hourly load shapes by class'!H2 -> GS>50kW | F11: ='Hourly load shapes by class'!I2 -> Street Lighting | G11: ='Hourly load shapes by class'!J2 -> Sentinel Lighting | H11: ='Hourly load shapes by class'!K2 -> USL | I11: ='Hourly load shapes by class'!L2 -> GS<50kW | K11: =D11 -> Residential | L11: =E11 -> GS>50kW | M11: Street Lighting | N11: Sentinel Lighting | O11: USL | P11: GS<50kW
A13: CO-INCIDENT PEAK (kW)
A15: 1 CP
A16: Total Sytem CP | B16: DCP1 | C16: =SUM(D16:I16) -> 90994.93773 | D16: ='Hourly load shapes by class'!G8802*1000000 -> 52245.53213 | E16: ='Hourly load shapes by class'!H8802*1000000 -> 23590.97199 | F16: ='Hourly load shapes by class'!I8802*1000000 -> 0 | G16: ='Hourly load shapes by class'!J8802*1000000 -> 0 | H16: ='Hourly load shapes by class'!K8802*1000000 -> 60.36563172 | I16: ='Hourly load shapes by class'!L8802*1000000 -> 15098.06798 | K16: ='Hourly load shapes by class'!O8815*1000000 -> 42284.64746 | L16: ='Hourly load shapes by class'!P8815*1000000 -> 28749.21798 | M16: ='Hourly load shapes by class'!Q8815*1000000 -> 0 | N16: ='Hourly load shapes by class'!R8815*1000000 -> 0 | O16: ='Hourly load shapes by class'!S8815*1000000 -> 25.55514345 | P16: ='Hourly load shapes by class'!T8815*1000000 -> 13908.76287
A18: 4 CP
A19: Total Sytem CP | B19: DCP4 | C19: =SUM(D19:I19) -> 346121.9472 | D19: =SUM('Hourly load shapes by class'!G8815:G8818)*1000000 -> 205823.4802 | E19: =SUM('Hourly load shapes by class'!H8815:H8818)*1000000 -> 87757.22632 | F19: =SUM('Hourly load shapes by class'!I8815:I8818)*1000000 -> 1290.373102 | G19: =SUM('Hourly load shapes by class'!J8815:J8818)*1000000 -> 1.702346992 | H19: =SUM('Hourly load shapes by class'!K8815:K8818)*1000000 -> 242.1747483 | I19: =SUM('Hourly load shapes by class'!L8815:L8818)*1000000 -> 51006.99042 | K19: =SUM('Hourly load shapes by class'!O8815:O8818)*1000000 -> 166582.1544 | L19: =SUM('Hourly load shapes by class'!P8815:P8818)*1000000 -> 106945.6414 | M19: =SUM('Hourly load shapes by class'!Q8815:Q8818)*1000000 -> 729.0996664 | N19: =SUM('Hourly load shapes by class'!R8815:R8818)*1000000 -> 2.262662685 | O19: =SUM('Hourly load shapes by class'!S8815:S8818)*1000000 -> 102.5220851 | P19: =SUM('Hourly load shapes by class'!T8815:T8818)*1000000 -> 46989.06742
A21: 12 CP
A22: Total Sytem CP | B22: DCP12 | C22: =SUM(D22:I22) -> 873581.3835 | D22: =SUM('Hourly load shapes by class'!G8802:G8813)*1000000 -> 491011.8213 | E22: =SUM('Hourly load shapes by class'!H8802:H8813)*1000000 -> 250324.7531 | F22: =SUM('Hourly load shapes by class'!I8802:I8813)*1000000 -> 5020.072793 | G22: =SUM('Hourly load shapes by class'!J8802:J8813)*1000000 -> 6.897899372 | H22: =SUM('Hourly load shapes by class'!K8802:K8813)*1000000 -> 729.1382967 | I22: =SUM('Hourly load shapes by class'!L8802:L8813)*1000000 -> 126488.7001 | K22: =SUM('Hourly load shapes by class'!O8802:O8813)*1000000 -> 387937.7406 | L22: =SUM('Hourly load shapes by class'!P8802:P8813)*1000000 -> 310104.2197 | M22: =SUM('Hourly load shapes by class'!Q8802:Q8813)*1000000 -> 2164.325903 | N22: =SUM('Hourly load shapes by class'!R8802:R8813)*1000000 -> 6.8821658 | O22: =SUM('Hourly load shapes by class'!S8802:S8813)*1000000 -> 308.6728861 | P22: =SUM('Hourly load shapes by class'!T8802:T8813)*1000000 -> 123653.2805
A24: NON CO_INCIDENT PEAK (kW)
A26: 1 NCP
A27: Classification NCP from Load Data Provider | B27: DNCP1 | C27: =SUM(D27:I27) -> 102437.9384 | D27: ='Hourly load shapes by class'!G8788*1000000 -> 60081.86622 | E27: ='Hourly load shapes by class'!H8788*1000000 -> 24096.63197 | F27: ='Hourly load shapes by class'!I8788*1000000 -> 1214.85 | G27: ='Hourly load shapes by class'!J8788*1000000 -> 1.61 | H27: ='Hourly load shapes by class'!K8788*1000000 -> 60.36563172 | I27: ='Hourly load shapes by class'!L8788*1000000 -> 16982.61458 | K27: =MAX('Hourly load shapes by class'!O8788:O8799*1000000) -> 48626.94336 | L27: =MAX('Hourly load shapes by class'!P8788:P8799*1000000) -> 31208.63717 | M27: =MAX('Hourly load shapes by class'!Q8788:Q8799*1000000) -> 793.8447148 | N27: =MAX('Hourly load shapes by class'!R8788:R8799*1000000) -> 2.479582792 | O27: =MAX('Hourly load shapes by class'!S8788:S8799*1000000) -> 33.16842255 | P27: =MAX('Hourly load shapes by class'!T8788:T8799*1000000) -> 15644.85995
A29: 4 NCP
A30: Classification NCP from Load Data Provider | B30: DNCP4 | C30: =SUM(D30:I30) -> 390421.2458 | D30: =(LARGE('Hourly load shapes by class'!G8788:G8799,1)+LARGE('Hourly load shapes by class'!G8788:G8799,2)+LARGE('Hourly load shapes by class'!G8788:G8799,3)+LARGE('Hourly load shapes by class'!G8788:G8799,4))*1000000 -> 223469.2014 | E30: =(LARGE('Hourly load shapes by class'!H8788:H8799,1)+LARGE('Hourly load shapes by class'!H8788:H8799,2)+LARGE('Hourly load shapes by class'!H8788:H8799,3)+LARGE('Hourly load shapes by class'!H8788:H8799,4))*1000000 -> 98329.20966 | F30: =(LARGE('Hourly load shapes by class'!I8788:I8799,1)+LARGE('Hourly load shapes by class'!I8788:I8799,2)+LARGE('Hourly load shapes by class'!I8788:I8799,3)+LARGE('Hourly load shapes by class'!I8788:I8799,4))*1000000 -> 5213.623472 | G30: =(LARGE('Hourly load shapes by class'!J8788:J8799,1)+LARGE('Hourly load shapes by class'!J8788:J8799,2)+LARGE('Hourly load shapes by class'!J8788:J8799,3)+LARGE('Hourly load shapes by class'!J8788:J8799,4))*1000000 -> 7.103304655 | H30: =(LARGE('Hourly load shapes by class'!K8788:K8799,1)+LARGE('Hourly load shapes by class'!K8788:K8799,2)+LARGE('Hourly load shapes by class'!K8788:K8799,3)+LARGE('Hourly load shapes by class'!K8788:K8799,4))*1000000 -> 268.4472625 | I30: =(LARGE('Hourly load shapes by class'!L8788:L8799,1)+LARGE('Hourly load shapes by class'!L8788:L8799,2)+LARGE('Hourly load shapes by class'!L8788:L8799,3)+LARGE('Hourly load shapes by class'!L8788:L8799,4))*1000000 -> 63133.66063 | K30: =(LARGE('Hourly load shapes by class'!O8788:O8799,1)+LARGE('Hourly load shapes by class'!O8788:O8799,2)+LARGE('Hourly load shapes by class'!O8788:O8799,3)+LARGE('Hourly load shapes by class'!O8788:O8799,4))*1000000 -> 180863.6263 | L30: =(LARGE('Hourly load shapes by class'!P8788:P8799,1)+LARGE('Hourly load shapes by class'!P8788:P8799,2)+LARGE('Hourly load shapes by class'!P8788:P8799,3)+LARGE('Hourly load shapes by class'!P8788:P8799,4))*1000000 -> 119829.2247 | M30: =(LARGE('Hourly load shapes by class'!Q8788:Q8799,1)+LARGE('Hourly load shapes by class'!Q8788:Q8799,2)+LARGE('Hourly load shapes by class'!Q8788:Q8799,3)+LARGE('Hourly load shapes by class'!Q8788:Q8799,4))*1000000 -> 2945.854286 | N30: =(LARGE('Hourly load shapes by class'!R8788:R8799,1)+LARGE('Hourly load shapes by class'!R8788:R8799,2)+LARGE('Hourly load shapes by class'!R8788:R8799,3)+LARGE('Hourly load shapes by class'!R8788:R8799,4))*1000000 -> 9.441308068 | O30: =(LARGE('Hourly load shapes by class'!S8788:S8799,1)+LARGE('Hourly load shapes by class'!S8788:S8799,2)+LARGE('Hourly load shapes by class'!S8788:S8799,3)+LARGE('Hourly load shapes by class'!S8788:S8799,4))*1000000 -> 113.6442725 | P30: =(LARGE('Hourly load shapes by class'!T8788:T8799,1)+LARGE('Hourly load shapes by class'!T8788:T8799,2)+LARGE('Hourly load shapes by class'!T8788:T8799,3)+LARGE('Hourly load shapes by class'!T8788:T8799,4))*1000000 -> 58160.49548
A32: 12 NCP
A33: Classification NCP from Load Data Provider | B33: DNCP12 | C33: =SUM(D33:I33) -> 993309.0826 | D33: =SUM('Hourly load shapes by class'!G8788:G8799)*1000000 -> 529017.034 | E33: =SUM('Hourly load shapes by class'!H8788:H8799)*1000000 -> 276653.0309 | F33: =SUM('Hourly load shapes by class'!I8788:I8799)*1000000 -> 14692.13854 | G33: =SUM('Hourly load shapes by class'!J8788:J8799)*1000000 -> 20.05776325 | H33: =SUM('Hourly load shapes by class'!K8788:K8799)*1000000 -> 729.1382967 | I33: =SUM('Hourly load shapes by class'!L8788:L8799)*1000000 -> 172197.6832 | K33: =SUM('Hourly load shapes by class'!O8788:O8799)*1000000 -> 428157.1623 | L33: =SUM('Hourly load shapes by class'!P8788:P8799)*1000000 -> 337144.1539 | M33: =SUM('Hourly load shapes by class'!Q8788:Q8799)*1000000 -> 8301.500774 | N33: =SUM('Hourly load shapes by class'!R8788:R8799)*1000000 -> 26.65963677 | O33: =SUM('Hourly load shapes by class'!S8788:S8799)*1000000 -> 308.6728861 | P33: =SUM('Hourly load shapes by class'!T8788:T8799)*1000000 -> 158633.3261
